Workbook

Sheet MENÚ

Sheet DATOS GENERALES
B10: SECCIÓN N°01: DATOS GENERALES DEL PROYECTO
B15: UNIDAD FORMULADORA (UF)
B17: Nivel de gobierno :
B19: Entidad :
B21: Nombre de la UF: (Nombre de la Unidad Orgánica a la que pertenece la UF)
B23: Responsable de la UF
C25: a
B29: Función
B31: División funcional
B33: Grupo funcional
B35: Sector responsable
B37: Tipología de proyecto
B42: Naturaleza de intervención | J42: Objeto de intervención | Q42: Localización
B51: Servicios públicos con brecha identificada y priorizada
B53: Nombre del Indicador de brecha de acceso a servicios | M53: Unidad de medida | Q53: Espacio geográfico | U53: Año | Y53: Valor
B57: Nota: Se puede incluir más de un servicio público con brecha y más de un indicador
B58: Contribución del Cierre de Brecha (Valor) | F58: Valor:
B59: Nota: Se refiere a la capacidad de producción que aporta el proyecto (incremental). Su estimación proviene de la diferencia entre la oferta con proyecto (tamaño) respecto a la oferta optimizada sin proyecto (cuando corresponda).

Sheet AREA DE ESTUDIO
B10: SECCIÓN N°02: DIAGNÓSTICO DEL ÁREA DE ESTUDIO
B12: DIAGNÓSTICO
B14: ÁREA DE ESTUDIO
B16: 2.01 Localización del área de estudio del proyecto
B18: N° | C18: Departamento | G18: Provincia | H18: Provincia | K18: Distrito | O18: Localidad/Centro poblado | S18: Ubigeo
B19: 1
B20: 2
B21: 3
B22: Nota: Si el área de estudio del proyecto abarca más de una localización, se podrán añadir más localizaciones.
B24: 2.02 Localización del área de influencia del proyecto
B26: N° | C26: Departamento | G26: Provincia | H26: Provincia | K26: Distrito | O26: Localidad/Centro poblado | S26: Ubigeo
B27: 1
B28: 2
B29: 3
B30: Nota: Si el área de influencia del proyecto abarca más de una localización, se podrán añadir más localizaciones.
B32: 2.03 Croquis con la ubicación de los beneficiarios o los demandantes actuales y futuros y la localización de los elementos de la UP (en caso exista) o la UP que se conformará producto de las alternativas de solución.
T35: Leyenda del croquis:
B37: Fuente de información:
B39: 2.04 Análisis de las características (físicas, accesibilidad, disponibilidad de servicios, insumos, etc.) que influirán en el diseño del proyecto, en la demanda, en los costos, etc.)
B41: Físicas
B43: Principales características del uso del suelo de la zona de interés (localización potencial de la UP)
B44: Tipo de suelo | E44: Área | H44: Descripción | K44: Fuente de información
B48: Altitud | E48: Temperatura | I48: Humedad | L48: Precipitación
B51: Describir características de accesibilidad y dinámica económica
B54: Acceso a servicios públicos | P54: Disponibilidad de recursos e insumos para el proyecto
B57: Servicio público | H57: Descripción | P57: Recursos | V57: Descripción | Z57: Descripción
B62: 2.05 Identificar los peligros que pueden ocurrir en el área de estudio
B64: Peligros | G64: ¿Existen antecedentes de ocurrencia en el área de estudio? | Q64: ¿Existe información que indique futuros cambios en las características del peligro o los nuevos peligros?
G65: Sí / No | I65: Características (Intensidad, frecuencia, área de impacto, otros) | Q65: Sí/No | S65: Características de los cambios o los nuevos peligros
B67: Inundaciones
B68: Movimientos en masa
B69: Lluvias intensas
B70: Helada
B71: Nevadas
B72: Friaje
B73: Sismos
B74: Sequías
B75: Vulcanismo
B76: Tsunamis
B77: Incendios forestales
B78: Erosión
B79: Vientos fuertes
B80: Incendios urbanos
B81: Radiación solar
B82: Otros

Sheet UNIDAD PRODUCTORA
B10: SECCIÓN N°03: DIAGNÓSTICO DE LA UNIDAD PRODUCTORA
B12: LA UNIDAD PRODUCTORA DE BIENES Y SERVICIOS (En caso exista)
B14: 3.01 Nombre de la Unidad Productora:
B16: 3.02 Código de la unidad productora (en caso el sector lo haya definido)*
B17: *Son obligatorios en caso de: colegios (código modular), instituciones prestadores de servicios de salud (código de establecimiento)
B18: Nota: Se puede agregar más de un código de identificación cuando el proyecto comprenda más de una Unidad Productora
B20: 3.03 Localización geográfica de la Unidad Productora
B22: N° | C22: Departamento | F22: Provincia | I22: Distrito | L22: Localidad/Centro poblado | O22: Coordenadas geográficas
B23: 1
B24: 2
B25: 3
B26: Nota: Si la Unidad Productora del proyecto abarca más de una localización o si el proyecto presenta más de una Unidad Productora, se podrán añadir más localizaciones
B28: 3.04 Diagnóstico de procesos de la Unidad Productora
B30: N° | C30: Caracterización de los procesos de producción de la UP
C31: Nombre del proceso de producción | G31: Descripción ¿En qué consiste el proceso? | K31: Situación actual
B33: 1
B34: 2
B35: n
B37: 3.05 Diagnóstico de los activos de la UP
B39: Procesos | C39: Tipo de Factor productivo | E39: Activos estratégicos esenciales* | G39: Cumple con los estándares de calidad del Sector | J39: Estado Situacional | O39: Acciones correctivas
G40: Norma técnica** | I40: Sí
B42: Proceso 1 | C42: Infraestructura | E42: Activo 1
E43: …
E44: Activo n
C45: Equipamiento | E45: Activo 1
E46: …
E47: Activo n
C48: Vehículos | E48: Activo 1
E49: …
E50: Activo n
C51: …
B52: Proceso … | C52: …
B53: Proceso n | C53: Infraestructura | E53: Activo 1
E54: …
E55: Activo n
C56: Equipamiento | E56: Activo 1
E57: …
E58: Activo n
C59: Vehículos | E59: Activo 1
E60: …
E61: Activo n
C62: …
B63: * Activos que modifican la capacidad de producción del servicio. P.ej: aulas, laboratorios de investigación, camas, consultorios, PTAP, etc.
B64: ** De no existir norma técnica, precisar el documento o informe técnico equivalente.
B67: 3.06 Detallar las prácticas de mantenimiento de la UP
B69: ¿Se dispone de un plan operativo aprobado? | I69: Sí | J69: No
B70: Precisar documento (en caso la anterior pregunta sea afirmativa)
B73: Precisar los activos esenciales que reciben mantenimiento | D73: Tipo de mantenimiento | G73: Fecha de último mantenimiento realizado | I73: Acciones de mantenimiento realizadas | K73: Costo de último mantenimiento realizado | M73: ¿En el año actual dispone de fondos para su ejecución? | O73: ¿La entidad dispone de los materiales, recursos humanos y gestión para el mantenimiento? | Q73: Precisar restricciones | T73: Órgano o área técnica responsable
D74: Rutinario | E74: Periódico | F74: Correctivo
B76: Activo 1
B77: Activo 2
B78: …
B79: …
B80: …
B81: …
B82: …
B83: …
B84: Activo "n"
B86: 3.07 Evolución de la producción de servicio provisto a los usuarios
B88: Servicios | D88: Unidad de Medida | F88: Año -5 | G88: Año -4 | H88: Año -3 | I88: Año -2 | J88: Año -1
B90: Servicio 1
B91: Servicio 2
B92: …
B93: Servicio "n"
B95: 3.08 Estimar la exposición de la UP frente a los peligros identificados en el diagnóstico del área de estudio
B97: Peligros | G97: Grado de exposición
G98: Bajo | H98: Medio | I98: Alto
B100: Inundaciones
B101: Movimientos en masa
B102: Lluvias intensas
B103: Helada
B104: Nevadas
B105: Friaje
B106: Sismos
B107: Sequías
B108: Vulcanismo
B109: Tsunamis
B110: Incendios forestales
B111: Erosión
B112: Vientos fuertes
B113: Incendios urbanos
B114: …
B117: 3.09 Describir la vulnerabilidad por factores de fragilidad y resiliencia
B119: Factor de Vulnerabilidad* | D119: Variable | J119: Grado de vulnerabilidad
J120: Bajo | K120: Medio | L120: Alto | M120: Muy alto
B122: Fragilidad | D122: Tipo de construcción
D123: Aplicación de normas de construcción
B124: Resiliencia | D124: Capacidades de los operadores para responder ante un evento natural
D125: Capacidades de respuesta de la organización (entidad) ante una contingencia.
D126: Capacidades financieras de la entidad para la respuesta
D127: Existencia de recursos financieros para respuesta
B128: *El llenado del cuadro es para cada UP o para cada uno de sus activos (en caso presenten distinta localización)
B129: 3.10 Mapa de peligros de la UP y su área de influencia
N130: Leyenda del croquis:
N132: UP o activos de la UP* expuestos | Q132: Coordenadas de ubicación
B135: Fuente de información:

Sheet INVOLUCRADOS
B10: SECCIÓN N°04: DIAGNÓSTICO DE LOS INVOLUCRADOS
B12: 4.01 Descripción de la población afectada
B14: Total de la población afectada | E14: Tipo de población* | H14: Unidad de medida | K14: Fuente de información
B17: *Define en función a la tipología del proyecto
B19: 4.02 Caracterización de la población afectada
B21: Estructura de la población
B22: Variables /indicadores | E22: Categorías | G22: Valor | I22: Fuente de información
B24: Edad | E24: 0-14 años
E25: 15-19 años
E26: 20-59 años
E27: Mayor a 60 años
B28: Género | E28: Hombre
E29: Mujer
B30: Personas con discapacidad
B31: Población infantil
B32: Población por niveles de ingresos
B33: Número de hogares
B34: % de la población con acceso a salud
B35: % de la población con acceso a saneamiento
B36: % de la población con acceso a electrificación
B37: % de la población con acceso a educación básica regular
B38: % de la PEA
B39: Otros
B40: *Esta matriz es referencial, dependerá de la tipología del proyecto
B42: 4.03 Matriz de involucrados
B44: Agente involucrado | E44: Posición (Cooperante, Beneficiario, Oponente, Perjudicado) | H44: Problemas percibidos | K44: Intereses o expectativas | N44: Contribución
B46: Población afectada

Sheet PROBLEMA-OBJETIVO
B10: SECCIÓN N° 05: PROBLEMA/OBJETIVO
B12: 5.01 DEFINICIÓN DEL PROBLEMA, SUS CAUSAS Y EFECTOS
B14: Descripción del problema central | F14: Indicador | J14: Descripción del indicador | M14: UM | N14: Valor
B18: Causas Directas (CD) | F18: Sustento (evidencias) | J18: Causas indirectas (CI)
B20: C.D 1: | J20: C.I. 1.1
J21: …
J22: C.I. 1.n
B23: … | J23: …
J24: …
J25: …
B26: C.D "n": | J26: C.I. n.1
J27: …
J28: C.I. n.n
B30: Efectos Directos (ED) | F30: Sustento (evidencias) | J30: Efectos Indirectos (EI) | N30: Sustento (evidencias)
B32: E.D 1: | J32: E.I. 1.1
J33: …
J34: E.I. 1.n
B35: … | J35: …
J36: …
J37: …
B38: E.D "n": | J38: E.I. n.1
J39: …
J40: E.I. n.n
B44: 5.02 DEFINICIÓN DE LOS OBJETIVOS DEL PROYECTO
B46: Descripción del objetivo central | F46: Indicador* | J46: Descripción del indicador* | M46: UM* | N46: Valor*
B49: * Esta información proviene de la información registrada en la tabla 1.04
B51: Medios fundamentales
B53: N° | C53: Medios fundamentales (componentes) | G53: Acciones
B55: 1
B58: …
B61: n
B63: n
B66: Fines directos (FD) | F66: Fines Indirectos (FI)
B68: F.D 1: | F68: F.I. 1.1
F69: …
F70: F.I. 1.n
B71: … | F71: …
F72: …
F73: …
B74: F.D "n": | F74: F.I. n.1
F75: …
F76: F.I. n.n
B79: 5.03 DESCRIPCIÓN DE LAS ALTERNATIVAS DE SOLUCIÓN AL PROBLEMA
B81: Alternativas | F81: Acciones excluyentes (Ae) | J81: Acciones independientes (Ai) | N81: Acciones complementarias (Ac)
B82: Alternativa 1 | F82: Ae 1 | J82: Ai 1 | N82: Ac 1
F83: … | J83: … | N83: …
F84: Ae "n" | J84: Ai "n" | N84: Ac "n"
B85: … | F85: … | J85: … | N85: …
F86: … | J86: … | N86: …
F87: … | J87: … | N87: …
B88: Alternativa "n" | F88: Ae 1 | J88: Ai 1 | N88: Ac 1
F89: … | J89: … | N89: …
F90: Ae "n" | J90: Ai "n" | N90: Ac "n"

Sheet HORIZONTE DE EVALUACIÓN
B11: SECCIÓN N°06: HORIZONTE DE EVALUACIÓN
B13: FORMULACIÓN
B15: 6.01 HORIZONTE DE EVALUACIÓN
H16: Alternativa 1 | J16: Alternativa n
B17: Periodo en años de la ejecución del proyecto
B18: Nota: Debe considerar los plazos del Estudios Definitivos (incluyendo los plazos de contratación) y la Ejecución Física (Incluye los plazos de contratación y liquidación)
B20: Periodo en años del funcionamiento del proyecto | H20: =+MIN(H22,H28) -> 0 | J20: =+MIN(J22,J28) -> 0
B22: a) La vida útil de los activos principales: | H22: =+MAX(H24:H26) -> 0 | J22: =+MAX(J24:J26) -> 0
B24: Infraestructura: Vida útil de diseño
B25: Tecnología: Por obsolescencia tecnológica
B26: Otros
B28: b) Tiempo esperado que durará la demanda por el bien o el servicio a proveer.
B31: Número de años del horizonte de evaluación | H31: =+H17+H20 -> 0 | J31: =+J17+J20 -> 0

Sheet BRECHA DE SERVICIO
B10: SECCIÓN N°07: BRECHA DE SERVICIO
B12: FORMULACIÓN
B15: ESTUDIO DE MERCADO DEL SERVICIO PÚBLICO
B17: 7.01 Definición y caracterización del servicio o de la cartera de servicios
B20: 7.02 Análisis de la demanda del servicio
B22: Tipo de población | D22: Año 1 | E22: Año 2 | F22: Año 3 | G22: … | H22: … | I22: … | J22: … | K22: … | L22: … | M22: Año n
B24: Población total
B25: Población de referencia
B26: Población demandante potencial
B27: Población demandante efectiva
B28: Población demandante objetivo
B29: * Nota: Replicar el llenado cuando existen diferentes grupos de población.
B31: Variables para la estimación de la demanda | E31: Tasa de crecimiento anual | H31: Consumo per cápita
B33: Servicio 1
B34: Servicio 2
B35: Servicio "n"
B37: Parámetros, supuestos considerados y fuentes de información
B40: 7.03 Proyección de la demanda del servicio
B42: Servicio | C42: Descripción | E42: Unidad de Medida | F42: Año 1 | G42: Año 2 | H42: Año 3 | I42: …. | J42: …. | K42: …. | L42: …. | M42: Año n
B44: Servicio 1
B45: Servicio 2
B46: Servicio 3
B47: Servicio "n"
B49: 7.04 Estimación de la oferta optimizada (sin proyecto)
B51: Servicio* | D51: UM | E51: Activos estratégicos esenciales | G51: Capacidad actual** | I51: Acciones de optimización | L51: Capacidad optimizada**
D58: Total capacidad actual | I58: Total capacidad optimizada
B59: * Nota: Replicar el llenado del cuadro cuando existe más de un servicio intervenido con el proyecto.
B60: **Nota: La unidad de medida de la capacidad de producción es la misma que la del balance oferta demanda
B62: Parámetros, supuestos considerados y fuentes de información
B65: 7.05 Proyección de la oferta del servicio
B67: Servicio | C67: Descripción | E67: Unidad de Medida | F67: Año 1 | G67: Año 2 | H67: Año 3 | I67: …. | J67: …. | K67: …. | L67: …. | M67: Año n
B69: Servicio 1
B70: Servicio 2
B71: Servicio 3
B72: Servicio "n"
B74: 7.06 Brecha del servicio (balance oferta optimizada sin proyecto-demanda con proyecto)
B76: Servicios con brecha | C76: Descripción | E76: Unidad de Medida | F76: Año 1 | G76: Año 2 | H76: Año 3 | I76: …. | J76: …. | K76: …. | L76: …. | M76: Año 10
B78: Servicio 1
B79: Servicio 2
B80: Servicio 3
B81: Servicio "n"
B82: *Nota: Los servicios con brecha corresponden a los servicios públicos con indicadores de cobertura

Sheet ANALISIS TÉCNICO
B10: SECCIÓN N°08: ANÁLISIS TÉCNICO
B12: ANÁLISIS TÉCNICO
B13: Este análisis sustenta la elección de una alternativa técnica de tamaño, localización y tecnología, en mérito a las características particulares de cada tipología de proyecto de inversión.
B15: 8.01 ANÁLISIS DE TAMAÑO (¿Cuánto producir?)
B17: Indicar el criterio o factor condicionante del tamaño del proyecto.
B20: Solo en los casos que sea posible analizar más de una alternativa de tamaño, se debe describir tales alternativas de tamaño en la siguiente tabla:
B22: N° | C22: Alternativa de tamaño | F22: Unidad de Medida | G22: Valor* | H22: Criterio o factor condicionante empleado**
B24: 1
B25: 2
B26: …
B27: *El tamaño se define como la capacidad de producción (oferta del servicio con proyecto) en un periodo de referencia.
B28: ** Los criterios o factores condicionantes del tamaño del proyecto pueden ser: Brecha de servicio - último año del horizonte de evaluación, posibilidades de implementación modular o escalonado, estacionalidad, economías de escala, periodo óptimo de diseño, tecnología, disposición de insumos, etc..
B31: 8.02 ANÁLISIS DE LOCALIZACIÓN (¿Dónde producir?)
B33: Indicar el criterio o factor condicionante de la localización del proyecto.
B36: Solo en los casos que sea posible analizar más de una alternativa de localización, se debe describir tales alternativas de localización en la siguiente tabla:
B38: N° | C38: Descripción de las alternativas de localización | F38: Coordenadas* | H38: Criterio o factor condicionante empleado**
B40: 1
B41: 2
B42: …
B44: *Adjuntar el documento sobre el saneamiento físico legal o los arreglos institucionales, en caso corresponda
B45: **Nota: Precisar el criterio con el cual se define la localización del proyecto (p.ej. ubicación de la población objetivo, condiciones climáticas y ambientales, condiciones topográficas, disponibilidad de infraestructura y servicios públicos domiciliarios, existencia de vías de comunicación y medios de transporte, planes reguladores municipales y de ordenamiento urbano, etc.).
B48: 8.03 ANÁLISIS DE TECNOLOGÍA (¿Cómo producir?)
B50: Descripción del proceso de producción del servicio (con proyecto)
B52: Procesos | C52: Tipo de Factor productivo | E52: Activo estratégicos esenciales | G52: Tipo de tecnología | I52: Factores relevantes que condicionan la tecnología | L52: Sustento
I53: Factor 1 | J53: Factor 2 | K53: Factor 3
B55: Proceso 1 | C55: Infraestructura | E55: Activo 1 | G55: 1)
G56: 2)
G57: …
E58: … | G58: …
E59: Activo "n" | G59: 1)
G60: 2)
G61: …
C62: Equipo | E62: Activo 1 | G62: 1)
G63: 2)
E64: … | G64: …
E65: Activo "n" | G65: 1)
G66: 2)
G67: …
C68: Intangibles | E68: Activo 1 | G68: 1)
G69: 2)
G70: …
E71: … | G71: …
E72: Activo "n" | G72: 1)
G73: 2)
G74: …
C75: Otros | E75: … | G75: …
B76: … | C76: … | E76: … | G76: …
C77: … | E77: … | G77: …
C78: … | E78: … | G78: …
C79: … | E79: … | G79: …
B80: Proceso "n" | C80: Infraestructura | E80: Activo 1 | G80: …
G81: …
E82: … | G82: …
E83: Activo "n" | G83: …
G84: …
C85: Equipo | E85: Activo 1
G86: …
E87: … | G87: …
E88: Activo "n"
G89: …
C90: Intangibles | E90: Activo 1
G91: …
E92: …
E93: Activo "n"
G94: …
C95: Otros | E95: … | G95: …
B97: 8.04 IDENTIFICACIÓN DE MEDIDAS DE REDUCCIÓN DEL RIESGO DE DESASTRES
B99: Descripción de las medidas de reducción del riesgo de desastres (asociadas al análisis de la exposición y fragilidad de la UP sujeta de intervención y de la resiliencia de la población afectada).
B106: 8.05 RESUMEN DE LAS ALTERNATIVAS TÉCNICAS
B108: Descripción de alternativas de solución | D108: Alternativas técnicas | J108: Resultado final* | L108: Resumen de las características relevantes del diseño técnico preliminar | N108: Documentos que respaldan el planteamiento del diseño técnico preliminar
D109: Tamaño | F109: Localización | H109: Tecnología
B111: Nombre de la alternativa de solución 1 | D111: Tamaño 1 | F111: Localización 1 | H111: Tecnología 1
D112: … | F112: … | H112: … | J112: … | L112: … | N112: …
B113: … | D113: … | F113: … | H113: … | J113: … | L113: … | N113: …
B114: * Descripción de la alternativa de solución al que se le agrega cada uno de los aspectos técnicos analizados (tamaño, localización y tecnología, -incluye medidas de reducción de riesgo- de corresponder) y que será evaluada en la Sección 10 "Evaluación Social".
B118: 8.06 METAS FISICAS DE LOS ACTIVOS QUE SE BUSCAN CREAR O INTERVENIR CON EL PROYECTO*
B120: Acción sobre el activo | F120: Tipo de factor productivo | H120: Unidad Física | J120: Dimensión física
B121: Acción | D121: Activos estratégicos esenciales
H122: Unidad de medida | I122: Cantidad | J122: Unidad de medida | K122: Cantidad
B124: Construcción | D124: Aulas | F124: Infraestructura | H124: Nro estructuras físicas | I124: 20 | J124: m2 | K124: 650
B125: Adquisición | D125: Mobiliario | F125: Mobiliario | H125: Nro mobiliario | I125: 100
B126: Acción3
B127: Acción4
B128: Acción5
B129: Acción6
B130: Acción7
B131: …
B132: …
B133: Acción n
B134: Nota: este cuadro se repite por cada unidad productora intervenida por el proyecto de inversión
B135: La estimación de los costos deberá ser sustentada a nivel de ingeniería conceptual

Sheet COSTO TOTAL
B10: SECCIÓN N°09: COSTOS DEL PROYECTO
B12: Estructura de costos de inversión
B14: 9.01 Costo de ejecución física de las acciones
B15: Acción sobre los activos | G15: Tipo de factor productivo | I15: Unidad Física | K15: Dimensión Física | M15: Costo unitario | N15: Costo total*
B16: Acción | E16: Activos | I16: Unidad de medida | J16: Cantidad | K16: Unidad de medida | L16: Cantidad
B19: Componente 1:
B20: Nombre de la acción "x" | E20: Nombre del activo "y" creado o intervenido
B21: … | E21: …
B22: Componente 2
B23: Nombre de la acción "x" | E23: Nombre del activo "y" creado o intervenido
B24: … | E24: …
B25: Medidas de reducción del riesgo de desastre y mitigación ambiental
B26: Nombre de la acción "x" | E26: Nombre del activo "y" creado o intervenido
B27: … | E27: …
B29: Sub Total de costos de inversión
B30: *Según corresponda
B31: Nota: este cuadro se repite por cada unidad productora intervenida por el proyecto de inversión
B32: La estimación de los costos deberá ser sustentada a nivel de ingeniería conceptual
B34: Otros costos de inversión
B36: Otros costos | E36: Costos a precios de mercado
B38: Gestión del proyecto
B39: Expediente técnico o documento equivalente
B40: Supervisión
B41: Liquidación
B42: Otros (línea de base, etc.)
B44: Subtotal de otros costos de inversión | E44: =+SUM(E38:E42) -> 0
B46: Costo Total de inversión | E46: =+E44+M29 -> 0 | G46: Anexar los costos detallados
B49: 9.02 Costos de reinversión
B50: Activos | D50: UM | E50: Cantidad | F50: AÑOS (Soles)
F51: 1 | G51: 2 | H51: 3 | I51: 4 | J51: 5 | K51: … | L51: … | M51: … | N51: n
B53: a1
B54: a2 | C54: a2
B55: … | C55: …
B57: 9.03 Costos de operación y mantenimiento con y sin proyecto
B58: Fecha prevista de inicio de operaciones: (mes / año):
B59: Horizonte de funcionamiento (años)
B62: COSTOS* | D62: ÍTEM | F62: AÑOS (Soles)
F63: 1 | G63: 2 | H63: 3 | I63: 4 | J63: 5 | K63: … | L63: … | M63: … | N63: n
B65: SIN PROYECTO | D65: OPERACIÓN
D66: Personal
D67: Bienes
D68: Servicios
D69: Otros
D70: MANTENIMIENTO
D71: Actividades
B72: CON PROYECTO | D72: OPERACIÓN
D73: Personal
D74: Bienes
D75: Servicios
D76: Otros
D77: MANTENIMIENTO
D78: Actividades
B79: INCREMENTAL | D79: OPERACIÓN
D80: MANTENIMIENTO
B82: * Agregar anexo de costos
B84: 9.04 Cronograma de inversión de metas financieras
B86: Fecha prevista de inicio de ejecución: | H86: (mes y año)
B87: Tipo de periodo
B88: Número de periodos | H88: (valor)
B90: Acción sobre los activos | G90: Tipo de factor productivo | I90: Cronograma de inversión | Q90: Costo estimado de inversión a precios de mercado (Soles)
B91: Componente /acción | E91: Activos | I91: 1 | J91: 2 | K91: 3 | L91: ………. | M91: ………. | N91: ………. | O91: ………. | P91: n
B94: Componente 1:
B95: Nombre de la acción "x" | E95: Nombre del activo "y" creado o intervenido
B96: …
B97: Componente 2
B98: Nombre de la acción "x" | E98: Nombre del activo "y" creado o intervenido
B99: …
B100: Componente "n"
B101: Nombre de la acción "x" | E101: Nombre del activo "y" creado o intervenido
B102: …
B103: Medidas de reducción del riesgo de desastre y mitigación ambiental
B104: Nombre de la acción "x" | E104: Nombre del activo "y" creado o intervenido
B105: Sub total : | Q105: A
B107: Otros costos | D107: 1 | E107: 2 | F107: 3 | G107: ………. | H107: ………. | I107: ………. | J107: ………. | K107: n | L107: Costos a precio de mercado
B109: Gestión del proyecto
B110: Expediente técnico
B111: Supervisión
B112: Liquidación
B113: Estudio de Línea Base
B114: Sub total : | L114: B
B115: Costo total de inversión: | L115: A+B
B117: Control concurrente* | L117: Hasta el 2%*(A+B) =C
B118: Nota: La gestión del proyecto, el expediente técnico o documento equivalente, la supervisión y la liquidación no son ítems. Los gastos generales, la utilidad y el IGV forman parte de los ítem.
B119: *Máximo hasta el 2% del costo total de inversión cuando supere los 10 MM
B121: Monto de inversión financiados con fondos públicos
B122: ¿El proyecto tiene aporte de los beneficiarios?
B124: SI | E124: Aporte de los beneficiarios (S/):
B126: NO | E126: Financiado con fondos públicos (S/):
B128: 9.05 Cronograma de metas físicas
B130: Acción sobre los activos | F130: Tipo de factor productivo | H130: Unidad de medida representativa | J130: Periodo | Q130: Total Meta Física
B131: Acción | D131: Activos
J132: Periodo 1 | K132: Periodo 2 | L132: … | M132: … | N132: … | O132: … | P132: Periodo n
J133: Meta física | K133: Meta física | L133: Meta física | M133: Meta física | N133: Meta física | O133: Meta física | P133: Meta física
B142: Nota: La unidad de medida representativa proviene de las unidades físicas, a excepción del ítem de Infraestructura que proviene de las dimensiones físicas.

Sheet EVALUACION SOCIAL
B10: SECCIÓN N°10: EVALUACIÓN SOCIAL
B12: EVALUACIÓN
B14: 10.01 BENEFICIOS SOCIALES
B16: Procedencia de los beneficios | C16: Tipo de beneficio | E16: Descripción | H16: Procedimiento de cálculo | K16: Fuentes de información
B27: Años | C27: 1 | D27: 2 | E27: 3 | I27: … | J27: … | K27: … | L27: n
B28: Beneficios directos
B29: Beneficios indirectos
B30: Externalidades positivas
B31: Intangibles
B32: * Sólo si corresponde a la tipología del proyecto se cuantifican los beneficios sociales, caso contrario solo se describen cualitativamente en la columna "Descripción" y se pasa directamente a la tabla 10.02 .
B34: 10.02 COSTOS SOCIALES
B36: Transformación de precios de mercado a precios sociales
B38: Costos de inversión a precios sociales
B40: Acciones | C40: Composición porcentual | D40: Costo total a precios de mercado | E40: Factor de corrección* | F40: Costo a precios sociales
B42: Acción 1
B43: Insumo no transable | E43: =1/1.18 -> 0.8474576271
B44: Insumo transable**
B45: Mano de obra calificada | E45: 1
B46: Mano de obra semicalificada
B47: Mano de obra no calificada***
B48: Combustibles | E48: ='[1]Parámetros de evaluación social'!E6 -> 0.66
B49: …
B50: Gestión del proyecto | E50: =1/1.18 -> 0.8474576271
B51: Expediente técnico | E51: =1/1.18 -> 0.8474576271
B52: Supervisión | E52: =1/1.18 -> 0.8474576271
B53: Liquidación | E53: =1/1.18 -> 0.8474576271
B54: Total
B56: * Según corresponda
B57: ** El valor asignado dependerá si el bien es exportado o importado.
B58: *** Este valor dependerá de la región geográfica y la zona que corresponda (urbano/rural)
B60: Costos de operación y mantenimiento a precios sociales
C62: Composición | D62: Costo total a precios de mercado | E62: Factor de corrección | F62: Costo a precios sociales
B64: Costos de operación incremental
B65: Personal
B66: Mano de obra calificada | E66: 1
B67: Mano de obra semicalificada
B68: Mano de obra no calificada
B69: Bienes
B70: Insumo no transable | E70: =1/1.18 -> 0.8474576271
B71: Insumo transable
B72: Mano de obra calificada | E72: 1
B73: Mano de obra semicalificada
B74: Mano de obra no calificada
B75: Combustibles | E75: ='[1]Parámetros de evaluación social'!E6 -> 0.66
B76: Servicios
B77: Insumo no transable | E77: =1/1.18 -> 0.8474576271
B78: Insumo transable
B79: Mano de obra calificada | E79: 1
B80: Mano de obra semicalificada
B81: Mano de obra no calificada
B82: Combustibles | E82: ='[1]Parámetros de evaluación social'!E6 -> 0.66
B83: Otros
B84: Insumo no transable | E84: =1/1.18 -> 0.8474576271
B85: Insumo transable
B86: Mano de obra calificada | E86: 1
B87: Mano de obra semicalificada
B88: Mano de obra no calificada
B89: Combustibles | E89: ='[1]Parámetros de evaluación social'!E6 -> 0.66
B90: Costos de mantenimiento incremental
B91: Actividades de mantenimiento en general
B92: Insumo no transable | E92: =1/1.18 -> 0.8474576271
B93: Insumo transable
B94: Mano de obra calificada | E94: 1
B95: Mano de obra semicalificada
B96: Mano de obra no calificada
B97: Combustibles | E97: ='[1]Parámetros de evaluación social'!E6 -> 0.66
B100: 10.03 FLUJO DE BENEFICIOS Y COSTOS A PRECIOS SOCIALES (EVALUACIÓN SOCIAL) ALTERNATIVA DE SOLUCIÓN N°__
B102: Años | C102: 0 | D102: 1 | E102: 2 | F102: 3 | J102: … | K102: … | L102: … | M102: n
B103: I. Beneficios (+)
B104: Beneficios directos
B105: Beneficios indirectos
B106: Externalidades positivas
B107: Total beneficios*
B108: * Sólo si corresponde a la tipología del proyecto
B109: II. Costos de inversión, operación y mantenimiento (-) a precios sociales
B110: 1. Costos de inversión
B111: 2. Costos de reinversión
B112: 3. Costos de operación incremental
B113: 4. Costos de mantenimiento incremental
B114: 5. Externalidades negativas
B115: Total Costos
B116: Flujo de beneficios netos a precios sociales
B117: Nota: se realiza por cada alternativa considerada en el proyecto
B119: 10.04 INDICADORES DE RENTABILIDAD SOCIAL
B121: Tipo | C121: Criterio de elección** | F121: Alternativa 1 | G121: Alternativa 2 | H121: Alternativa n
B123: Costo / Beneficio* | C123: Valor Actual Neto (VAN)
C124: Tasa Interna de Retorno (TIR)
C125: Valor Anual Equivalente (VAE)
B126: Costo / Eficiencia* | C126: Valor Actual de los Costos (VAC)
C127: Costo Anual Equivalente (CAE)
C128: Costo por capacidad de producción
C129: Costo por beneficiario directo
B130: * A precios sociales
B131: ** En función a la tipología del proyecto se definirá cual es el criterio de elección más conveniente
B133: 10.05 ANÁLISIS DE SENSIBILIDAD
B135: i) Determinar las variables (demanda, costos de los principales insumos, tarifas o precios cobrados a los usuarios, periodo de ejecución, entre otros) , cuyas variaciones pueden afectar la condición de rentabilidad social del proyecto, su sostenibilidad financiera (cuando corresponda) o la selección de alternativas. ii) Definir y sustentar los rangos de variación de dichas variables que afectarían la condición de rentabilidad social o la selección de alternativas.
B139: ANALISIS DE SENSIBILIDAD BIDIMENSIONAL
B140: ICE / VAN | D140: Variación % de los Costos / periodo de ejecución/ otros
D141: 75 | E141: 50 | F141: 20 | G141: 0 | H141: -20 | I141: -50 | J141: -75
B142: Variación % del total de beneficiarios | C142: 75
C143: 50
C144: 20
C145: 0
C146: -20
C147: -50
C148: -75

Sheet SOSTENIBILIDAD
B10: SECCIÓN N°11: SOSTENIBILIDAD
B12: 11.01 Sostenibilidad financiera: cuando la tarifa/tasa está predeterminada | J12: Sí | K12: No
B14: Deberá efectuarse para aquellos proyectos de inversión que tienen generación de ingresos monetarios (por ejemplo, a través del cobro de peajes, tarifas, tasas, cuotas, entre otros) por la prestación del servicio público sujeto de intervención.
B16: Tarifa por servicios (cuando corresponda)
B18: Servicios | E18: Tarifa que se cobra a los usuarios
B20: Servicio 1
B21: Servicio 2
B22: …
B23: Servicio n
B25: Índice de cobertura de los ingresos
B27: Ítems | E27: 0 | F27: 1 | G27: 2 | H27: 3 | I27: 4 | J27: 5 | K27: … | L27: … | M27: … | N27: … | O27: n
B29: Ingresos (a) tarifa x cantidad
B30: Costos de operación y mantenimiento con proyecto (b)
B31: Saldo a cubrir por otras fuentes (a)-(b). P.ej. Transferencias.
B32: Índice de cobertura de los ingresos (a)/(b)
B34: Análisis del flujo de caja para determinar el grado de autosostenibilidad | H34: Incluir flujo de caja de la unidad operativa que gestionará el proyecto.
B38: 11.02 Sostenibilidad financiera: cuando la tasa/tarifa no está predeterminada | J38: Sí | K38: No
B40: Deberá efectuarse para aquellos proyectos de inversión que tienen potencial de generación de ingresos monetarios (por ejemplo, a través del cobro de peajes, tarifas, tasas, cuotas, entre otros) por la prestación del servicio público sujeto de intervención.
B42: Flujo de costos y servicios | E42: 0 | F42: 1 | G42: 2 | H42: 3 | I42: 4 | J42: 5 | K42: … | L42: … | M42: … | N42: … | O42: n
B44: Costos de O&M con proyecto
B45: Demanda por servicio 1
B46: Demanda por servicio 2
B47: Demanda por servicio n
B49: Sumatoria de costos de O&M con proyecto (a)
B50: Sumatoria de demanda de servicios con proyecto (b)
B51: Tarifa (a) / (b)
B52: Nota: cuando sea posible se debe calcular una tarifa por cada servicio
B54: Análisis de la disposición a pagar del usuario en caso de requerir tarifas o tasas
B58: Fuente de Información
B60: 11.03 Evaluación privada (a precios de mercado)
B62: Ítems | E62: 0 | F62: 1 | G62: 2 | H62: 3 | I62: 4 | J62: 5 | K62: … | L62: … | M62: … | N62: … | O62: n
B64: Ingresos (con tarifa)
B65: Inversión
B66: Costos de O&M con proyecto
B67: Flujos netos
B69: Tasa de descuento
B70: VAN
B72: 11.04 Descripción de la capacidad institucional en la sostenibilidad del proyecto
B74: Ítem | G74: Descripción | K74: Fuente de información
B76: Órgano técnico responsable de la operación y mantenimiento del proyecto
B77: Análisis de la disponibilidad oportuna de recursos para la operación y mantenimiento
B78: Descripción de los arreglos institucionales para la fase de Funcionamiento
B79: Descripción de la capacidad de gestión del operador
B83: 11.05 Gestión integral de los riesgos
B85: Tipo de riesgo (operacional, contexto de cambio climático, mercado, financiero, legal, …) | E85: Descripción del riesgo | H85: Probabilidad de ocurrencia* (baja, media, alta) | J85: Impacto (bajo, moderado, mayor) | L85: Medidas de mitigación
B91: * Dicha probabilidad resultará de un juicio técnico sobre que tan posible es la ocurrencia del riesgo afecte el desempeño del proyecto.

Sheet GESTIÓN
B10: SECCIÓN N°12: GESTIÓN DEL PROYECTO
F12: Años | G12: Meses
B13: 12.01 Plan de implementación
B15: Actividades del Plan de Implementación | F15: Fecha | H15: Órgano Responsable | J15: Periodo
F16: Inicio | G16: Fin | J16: 1 | K16: 2 | L16: 3 | M16: … | N16: n
B18: Expediente Técnico (ET) o Estudio Definitivo (ED)
B19: Proceso de selección
B20: Convocatoria
B21: Integración de Bases
B22: Buena Pro
B23: Suscripción del Contrato
B24: Elaboración del ET o ED
B25: Supervisión
B26: Proceso de selección
B27: Convocatoria
B28: Integración de Bases
B29: Buena Pro
B30: Suscripción del Contrato
B31: Supervisión del PI
B32: Ejecución
B33: Proceso de selección
B34: Convocatoria
B35: Integración de Bases
B36: Buena Pro
B37: Suscripción del Contrato
B38: Ejecución Contractual
B39: Acción 1
B40: …
B41: Acción "n"
B42: Recepción
B43: Liquidación física y financiera
B44: Transferencia
B46: 12.02 Modalidad de ejecución de proyecto
B48: Tipo de ejecución | G48: Marcar
B50: Administración directa
B51: Administración indirecta – por contrata
B52: Administración indirecta – Asociación Público Privado (APP)
B53: Administración indirecta – Núcleo Ejecutor
B54: Administración indirecta – Ley 29230 (Obras por Impuestos)
B56: 12.03 Requerimientos institucionales y normativos en la fase de Ejecución y fase de Funcionamiento
B57: (Referido a los aspectos técnicos y regulatorios que el proyecto deberá cumplir durante la fase de Ejecución).
B59: Condiciones previas relevantes
B61: Ejecución | G61: Marcar | H61: Estado situacional
B62: Saneamiento técnico legal
B63: Factibilidad de servicios de agua, desagüe y electricidad
B64: Certificado de parámetros urbanísticos
B65: Cumplimiento de permisos y autorizaciones
B66: Otros
B67: Ejecución
B68: Saneamiento técnico legal
B69: Factibilidad de servicios de agua, desagüe y electricidad
B70: Certificado de parámetros urbanísticos
B71: Cumplimiento de permisos y autorizaciones
B72: Otros
B74: 12.04 Entidad u órgano que estará a cargo de la operación y mantenimiento
B78: 12.05 Fuente de financiamiento
B80: Fuente de Financiamiento | C80: Marcar | G80: Marcar
B82: Recursos ordinarios
B83: Recursos directamente recaudados
B84: Recursos por operaciones oficiales de crédito
B85: Donaciones y transferencias
B86: Recursos determinados
B88: En caso se seleccione como fuente de financiamiento ROOC, se deberá sustentar la estructuración financiera del monto de inversión del Proyecto.

Sheet IMPACTO AMBIENTAL
B10: SECCIÓN N°13: IMPACTO AMBIENTAL
B12: 13.01 Impacto ambiental
B14: IMPACTOS NEGATIVOS | F14: MEDIDAS DE MITIGACIÓN | I14: COSTO (S/)
B16: Durante la Ejecución
B17: Impacto 1:
B18: Impacto 2:
B19: …
B20: Durante el Funcionamiento
B21: Impacto 1:
B22: Impacto 2:
B23: …

Sheet MARCO LOGICO
B10: SECCIÓN N°14: MARCO LÓGICO
B12: 14.01 RESUMEN DEL PROYECTO: MATRIZ DEL MARCO LÓGICO
B14: Nivel de objetivo | E14: Indicadores | H14: Medios de verificación | K14: Supuestos
B16: Fin
B17: Propósito
B18: Componentes | E18: Indicador 1
E19: …
E20: Indicador "n"
B21: Acciones | E21: Indicador 1
E22: …
E23: Indicador "n"

Sheet CONCLUSIONES
B2: SECCIÓN N°15: CONCLUSIONES Y RECOMENDACIONES
B4: 15.01 CONCLUSIONES Y RECOMENDACIONES
B6: Se debe indicar el resultado del proceso de formulación y evaluación del proyecto (viable o no viable) y detallar los principales argumentos que sustentan dicho resultado, en términos de lo siguiente: a. Cumplimiento de los tres atributos que definen la condición de viabilidad de un proyecto, en caso el proyecto resulte viable. Si el resultado es no viable, indicar qué atributo o atributos no se logró cumplir. b. Emitir un juicio técnico sobre la calidad y la pertinencia del grado de profundización de la información empleada para la elaboración de la ficha técnica, así como la consistencia y coherencia de los supuestos establecidos, las fuentes de información, las normas técnicas, los parámetros y metodologías empleadas, entre otros elementos claves relacionados con el fundamento técnico y económico de la decisión de inversión.

Sheet FIRMAS
B2: SECCIÓN N°16: FIRMAS
B4: 16.01 FIRMAS
B10: Preparado o supervisado por: | E10: ……………………………………………………………………………. | I10: Fecha: | J10: …………………………………………………………………………….
E11: Especialista de la UF o Responsable de la UF
B17: Declarado viable por: | E17: ……………………………………………………………………………. | I17: Fecha: | J17: …………………………………………………………………………….
E18: Responsable de la UF

Sheet ANEXOS
B1: SECCIÓN N°17: ANEXOS
B3: 17.01 ANEXOS
B5: Considerar los siguientes anexos (según corresponda):
B7: Nro. | C7: Descripción del anexo
B9: 1 | C9: Análisis que determina la baja o mediana complejidad de la tipología del proyecto (en consistencia al Anexo N°11 del capítulo III de la Directiva General).
B10: 2 | C10: Información asociada a diagnóstico de la unidad productora y de la población afectada
B11: 3 | C11: Estudios preliminares del análisis técnico (topografía, estudio de suelos, etc.) que sustentan la elección del Tamaño, Tecnología y Localización y los planos de la propuesta técnica.
B12: 4 | C12: Análisis de la brecha de servicios
B13: 5 | C13: Análisis de costos
B14: 6 | C14: Documentos de saneamiento físico legal
B15: 7 | C15: Documentos institucionales de acuerdo al Sector (Acuerdos Institucionales, Convenios, Actas de Compromiso, permisos sectoriales etc.)
B16: 8 | C16: Análisis de los resultados de la evaluación social

Sheet Protocolo final
B1: SECCIÓN N°18: PROTOCOLO DE EVALUACIÓN
B3: 18.01 PROTOCOLO DE EVALUACIÓN
B5: Número | C5: Criterios de cumplimiento | J5: Sí | K5: Comentarios
C7: Alineamiento al cierre de una brecha prioritaria:
B8: 1 | C8: ¿El proyecto de inversión contribuye a la meta de cierre de una brecha prioritaria?
C9: Identificación:
B10: 2 | C10: ¿Se ha delimitado el área de influencia/área de estudio y definido sus características?
B11: 3 | C11: ¿Han sido identificados los peligros naturales, socionaturales y antrópicos que podrían impactar sobre la infraestructura existente o sobre el proyecto durante su vida útil?
B12: 4 | C12: ¿Se ha examinado el desempeño de la oferta actual del servicio?
B13: 5 | C13: ¿Se ha examinado la exposición y vulnerabilidad de la UP frente a peligros identificados en el área de estudio?
B14: 7 | C14: ¿Se han identificado y caracterizado a los agentes afectados y/o beneficiados con el proyecto de inversión?
B15: 8 | C15: ¿El problema central ha sido definido como una situación negativa ó hecho real que afecta a un sector de la población? Las causas explican el problema central? ¿Los efectos son consecuencia del problema identificado?
B16: 9 | C16: ¿El objetivo central o propósito del proyecto expresa la solución del problema central y los medios definidos para el proyecto son suficientes para alcanzar el objetivo central?
B17: 10 | C17: ¿Las acciones que contemplan las alternativas de solución se derivan del análisis de los medios fundamentales?
B18: 11 | C18: ¿Las alternativas planteadas se basan en evidencia técnica, científica o experiencia de otros proyectos?
C19: Formulación:
B20: 12 | C20: ¿El Horizonte de Evaluación del Proyecto ha sido adecuadamente determinado?
B21: 13 | C21: ¿La demanda efectiva (o demanda objetivo) y su proyección han sido estimadas en base a parámetros, supuestos y metodologías adecuadas? ¿Se presenta evidencia técnica que respalda los supuestos utilizados?
B22: 14 | C22: ¿Han sido identificados los factores de producción que determinan la oferta actual?
B23: 15 | C23: ¿La oferta actual optimizada ha sido cuantificada considerando los principales factores de producción?
B24: 16 | C24: ¿Ha sido calculada la brecha existente entre la demanda efectiva (o demanda objetivo) con proyecto y la oferta optimizada sin proyecto?
B25: 17 | C25: ¿El tamaño del proyecto (capacidad de producción) guarda correspondencia con la brecha de servicio existente?
B26: 18 | C26: ¿La localización propuesta para el proyecto se encuentra adecuadamente justificada?
B27: 19 | C27: ¿La opción tecnológica propuesta para el proyecto se encuentra adecuadamente justificada?
B28: 20 | C28: ¿Las alternativas de solución están conforme guardan correspondencia con los niveles de servicio y estándares de calidad establecidos por el Sector competente?
B29: 21 | C29: ¿Las soluciones técnicas están respaldadas por estudios de base o campo que el sector establece?
B30: 22 | C30: ¿Las alternativas consideran acciones para reducir probables daños o pérdidas que podrían generar en caso de la ocurrencia de desastres?
B31: 23 | C31: ¿Las alternativas consideran acciones para reducir el impacto ambiental que podría generar el proyecto?
B32: 24 | C32: ¿El presupuesto de inversión de cada alternativa de solución está desagregado a nivel de acciones, actividades y tareas? ¿El presupuesto de inversión del proyecto ha incluido los costos de mitigación ambiental y riesgos?
B33: 25 | C33: ¿Los costos de operación y mantenimiento tienen un razonable nivel de desagregación y se encuentran justificados en relación a la demanda por atender con el proyecto?
C34: Evaluación:
B35: 26 | C35: ¿La metodología de evaluación social seleccionada (costo beneficio o costo efectividad) guarda correspondencia con la tipología de proyecto de inversión?
B36: 27 | C36: ¿Existe evidencia que respalda la atribución de los beneficios a los resultados del proyecto, y estos han sido estimados en base a parámetros y procedimientos de cálculo razonables?
B37: 28 | C37: ¿Han sido calculados los indicadores de evaluación social para cada alternativa de solución?
B38: 29 | C38: ¿Se ha analizado el comportamiento de la rentabilidad de las alternativas ante posibles cambios en las principales variables como demanda y costos?
B39: 30 | C39: ¿Se presenta el plan de implementación con las actividades necesarias (ruta crítica) para la ejecución del proyecto?
B40: 31 | C40: ¿Se han definido los requerimientos institucionales y normativos que se deben cumplir durante la fase de ejecución y fase de funcionamiento?
B41: 32 | C41: ¿Se han identificado los probables impactos positivos y/o negativos del proyecto en el medioambiente?
B42: 33 | C42: ¿Se ha definido quién financiará la operación y mantenimiento del proyecto?
B43: 34 | C43: ¿Se ha realizado un análisis tarifario, tasas o contribuciones para la sostenibilidad financiera del proyecto?

Sheet DETALLE DEL COSTO TOTAL (hidden)
B2: Descripción | E2: Unidad de Medida | F2: Meta | G2: Costo Unitario | H2: Costo Total S/ | I2: Factor Corrección | J2: Costo Total S/ | L2: Cronograma de Ejecución (Trimestral) | U2: Cronograma de Ejecución Gantt (Trimestral) | AF2: Ejecución Financiera a precios privados en Soles (Trimestral) | AO2: Ejecución Financiera a precios sociales en Soles (Trimestral)
H3: P. Privados | J3: P. Sociales | L3: 1 | M3: 2 | N3: 3 | O3: 4 | P3: 5 | Q3: 6 | R3: 7 | S3: 8 | U3: 1 | W3: 2 | X3: 3 | Y3: 4 | Z3: 5 | AA3: 6 | AB3: 7 | AC3: 8 | AF3: 1 | AG3: 2 | AH3: 3 | AI3: 4 | AJ3: 5 | AK3: 6 | AL3: 7 | AM3: 8 | AO3: 1 | AP3: 2 | AQ3: 3 | AR3: 4 | AS3: 5 | AT3: 6 | AU3: 7 | AV3: 8
B5: COMPONENTE 1.Fortalecimiento de capacidades para la planificación y generación de información temática para … | H5: =+H6+H28 -> 665410.96 | J5: =+J6+J28 -> 591763.8644 | AF5: =+AF6+AF28 -> 133090.96 | AG5: 135136 | AH5: 88944 | AI5: 88944 | AJ5: 75296 | AK5: 48000 | AL5: 48000 | AM5: 48000 | AN5: =+H5-SUM(AF5:AM5) -> 0 | AO5: =+AO6+AO28 -> 116270.9831 | AP5: 118004.0678 | AQ5: 78858.30508 | AR5: 78858.30508 | AS5: 67292.20339 | AT5: 44160 | AU5: 44160 | AV5: 44160 | AW5: =+J5-SUM(AO5:AV5) -> 0
B6: Acción 1.1 | C6: … | H6: =+SUM(H7:H27) -> 528930.96 | J6: =+SUM(J7:J27) -> 476102.8475 | AF6: =+SUM(AF7:AF27) -> 133090.96 | AG6: =+SUM(AG7:AG27) -> 107840 | AH6: 48000 | AI6: 48000 | AJ6: 48000 | AK6: 48000 | AL6: 48000 | AM6: 48000 | AN6: =+H6-SUM(AF6:AM6) -> 0 | AO6: =+SUM(AO7:AO27) -> 116270.9831 | AP6: =+SUM(AP7:AP27) -> 94871.86441 | AQ6: 44160 | AR6: 44160 | AS6: 44160 | AT6: 44160 | AU6: 44160 | AV6: 44160 | AW6: =+J6-SUM(AO6:AV6) -> 0
B7: Act. 1.1.1 | C7: YYYYY | AN7: 0 | AW7: 0
C8: Tarea 1.1.1.1 | D8: ZZZZ | E8: Taller | F8: 5 | G8: 4000 | H8: =+G8*F8 -> 20000 | I8: =1/(1.18) -> 0.8474576271 | J8: =+I8*H8 -> 16949.15254 | L8: 1 | M8: 0 | N8: 0 | O8: 0 | P8: 0 | Q8: 0 | R8: 0 | S8: 0 | V8: =+L8 -> 1 | W8: 0 | X8: 0 | Y8: 0 | Z8: 0 | AA8: 0 | AB8: 0 | AC8: 0 | AF8: =+L8*$H8 -> 20000 | AG8: 0 | AH8: 0 | AI8: 0 | AJ8: 0 | AK8: 0 | AL8: 0 | AM8: 0 | AN8: 0 | AO8: =+L8*$J8 -> 16949.15254 | AP8: =+M8*$J8 -> 0 | AQ8: 0 | AR8: 0 | AS8: 0 | AT8: 0 | AU8: 0 | AV8: 0 | AW8: 0
C9: Tarea 1.1.1.2 | D9: KKKK | E9: Publicación | F9: 1 | G9: =(1136*1.18)*2 -> 2680.96 | H9: =+G9*F9 -> 2680.96 | I9: =1/(1.18) -> 0.8474576271 | J9: =+I9*H9 -> 2272 | L9: 1 | M9: 0 | N9: 0 | O9: 0 | P9: 0 | Q9: 0 | R9: 0 | S9: 0 | V9: 1 | W9: 0 | X9: 0 | Y9: 0 | Z9: 0 | AA9: 0 | AB9: 0 | AC9: 0 | AF9: 2680.96 | AG9: 0 | AH9: 0 | AI9: 0 | AJ9: 0 | AK9: 0 | AL9: 0 | AM9: 0 | AN9: 0 | AO9: =+L9*$J9 -> 2272 | AP9: 0 | AQ9: 0 | AR9: 0 | AS9: 0 | AT9: 0 | AU9: 0 | AV9: 0 | AW9: 0
B10: Act. 1.1.2 | C10: Acompañamiento Técnico | AN10: 0 | AW10: 0
C11: Tarea 1.1.2.1 | D11: Especialista SIG | E11: mes | F11: =12*2 -> 24 | G11: 6000 | H11: =+G11*F11 -> 144000 | I11: 0.92 | J11: =+I11*H11 -> 132480 | L11: 0.125 | M11: 0.125 | N11: 0.125 | O11: 0.125 | P11: 0.125 | Q11: 0.125 | R11: 0.125 | S11: 0.125 | V11: =+L11 -> 0.125 | W11: 0.125 | X11: 0.125 | Y11: 0.125 | Z11: 0.125 | AA11: 0.125 | AB11: 0.125 | AC11: 0.125 | AF11: =+L11*$H11 -> 18000 | AG11: 18000 | AH11: 18000 | AI11: 18000 | AJ11: 18000 | AK11: 18000 | AL11: 18000 | AM11: 18000 | AN11: 0 | AO11: =+L11*$J11 -> 16560 | AP11: 16560 | AQ11: 16560 | AR11: 16560 | AS11: 16560 | AT11: 16560 | AU11: 16560 | AV11: 16560 | AW11: 0
C12: Tarea 1.1.2.2 | D12: Especialista Forestal | E12: mes | F12: =12*2 -> 24 | G12: 6000 | H12: 144000 | I12: 0.92 | J12: 132480 | L12: 0.125 | M12: 0.125 | N12: 0.125 | O12: 0.125 | P12: 0.125 | Q12: 0.125 | R12: 0.125 | S12: 0.125 | V12: 0.125 | W12: 0.125 | X12: 0.125 | Y12: 0.125 | Z12: 0.125 | AA12: 0.125 | AB12: 0.125 | AC12: 0.125 | AF12: 18000 | AG12: 18000 | AH12: 18000 | AI12: 18000 | AJ12: 18000 | AK12: 18000 | AL12: 18000 | AM12: 18000 | AN12: 0 | AO12: 16560 | AP12: 16560 | AQ12: 16560 | AR12: 16560 | AS12: 16560 | AT12: 16560 | AU12: 16560 | AV12: 16560 | AW12: 0
C13: Tarea 1.1.2.3 | D13: Sociologo | E13: mes | F13: =12*2 -> 24 | G13: 4000 | H13: 96000 | I13: 0.92 | J13: 88320 | L13: 0.125 | M13: 0.125 | N13: 0.125 | O13: 0.125 | P13: 0.125 | Q13: 0.125 | R13: 0.125 | S13: 0.125 | V13: 0.125 | W13: 0.125 | X13: 0.125 | Y13: 0.125 | Z13: 0.125 | AA13: 0.125 | AB13: 0.125 | AC13: 0.125 | AF13: 12000 | AG13: 12000 | AH13: 12000 | AI13: 12000 | AJ13: 12000 | AK13: 12000 | AL13: 12000 | AM13: 12000 | AN13: 0 | AO13: 11040 | AP13: 11040 | AQ13: 11040 | AR13: 11040 | AS13: 11040 | AT13: 11040 | AU13: 11040 | AV13: 11040 | AW13: 0
B14: Act. 1.1.3 | C14: … | AN14: 0 | AW14: 0
C15: Tarea 1.1.3.1 | D15: … | AN15: 0 | AW15: 0
D16: … | E16: Mes | F16: 1 | G16: 2000 | H16: =+G16*F16 -> 2000 | I16: =1/(1.18) -> 0.8474576271 | J16: =+I16*H16 -> 1694.915254 | L16: 1 | M16: 0 | N16: 0 | O16: 0 | P16: 0 | Q16: 0 | R16: 0 | S16: 0 | V16: =+L16 -> 1 | W16: 0 | X16: 0 | Y16: 0 | Z16: 0 | AA16: 0 | AB16: 0 | AC16: 0 | AF16: =+L16*$H16 -> 2000 | AG16: 0 | AH16: 0 | AI16: 0 | AJ16: 0 | AK16: 0 | AL16: 0 | AM16: 0 | AN16: 0 | AO16: =+L16*$J16 -> 1694.915254 | AP16: 0 | AQ16: 0 | AR16: 0 | AS16: 0 | AT16: 0 | AU16: 0 | AV16: 0 | AW16: 0
D17: … | E17: Mes | F17: 1 | G17: 2250 | H17: =+G17*F17 -> 2250 | I17: 0.8474576271 | J17: 1906.779661 | L17: 1 | M17: 0 | N17: 0 | O17: 0 | P17: 0 | Q17: 0 | R17: 0 | S17: 0 | V17: 1 | W17: 0 | X17: 0 | Y17: 0 | Z17: 0 | AA17: 0 | AB17: 0 | AC17: 0 | AF17: 2250 | AG17: 0 | AH17: 0 | AI17: 0 | AJ17: 0 | AK17: 0 | AL17: 0 | AM17: 0 | AN17: 0 | AO17: 1906.779661 | AP17: 0 | AQ17: 0 | AR17: 0 | AS17: 0 | AT17: 0 | AU17: 0 | AV17: 0 | AW17: 0
D18: … | E18: Global | F18: 1 | G18: 1000 | H18: 1000 | I18: 0.8474576271 | J18: 847.4576271 | L18: 1 | M18: 0 | N18: 0 | O18: 0 | P18: 0 | Q18: 0 | R18: 0 | S18: 0 | V18: 1 | W18: 0 | X18: 0 | Y18: 0 | Z18: 0 | AA18: 0 | AB18: 0 | AC18: 0 | AF18: 1000 | AG18: 0 | AH18: 0 | AI18: 0 | AJ18: 0 | AK18: 0 | AL18: 0 | AM18: 0 | AN18: 0 | AO18: 847.4576271 | AP18: 0 | AQ18: 0 | AR18: 0 | AS18: 0 | AT18: 0 | AU18: 0 | AV18: 0 | AW18: 0
D19: … | E19: Global | F19: 1 | G19: 1000 | H19: 1000 | I19: 0.8474576271 | J19: 847.4576271 | L19: 1 | M19: 0 | N19: 0 | O19: 0 | P19: 0 | Q19: 0 | R19: 0 | S19: 0 | V19: 1 | W19: 0 | X19: 0 | Y19: 0 | Z19: 0 | AA19: 0 | AB19: 0 | AC19: 0 | AF19: 1000 | AG19: 0 | AH19: 0 | AI19: 0 | AJ19: 0 | AK19: 0 | AL19: 0 | AM19: 0 | AN19: 0 | AO19: 847.4576271 | AP19: 0 | AQ19: 0 | AR19: 0 | AS19: 0 | AT19: 0 | AU19: 0 | AV19: 0 | AW19: 0
D20: … | E20: Millar | F20: 10 | G20: 600 | H20: 6000 | I20: 0.8474576271 | J20: 5084.745763 | L20: 1 | M20: 0 | N20: 0 | O20: 0 | P20: 0 | Q20: 0 | R20: 0 | S20: 0 | V20: 1 | W20: 0 | X20: 0 | Y20: 0 | Z20: 0 | AA20: 0 | AB20: 0 | AC20: 0 | AF20: 6000 | AG20: 0 | AH20: 0 | AI20: 0 | AJ20: 0 | AK20: 0 | AL20: 0 | AM20: 0 | AN20: 0 | AO20: 5084.745763 | AP20: 0 | AQ20: 0 | AR20: 0 | AS20: 0 | AT20: 0 | AU20: 0 | AV20: 0 | AW20: 0
D21: … | E21: Millar | F21: 10 | G21: 600 | H21: 6000 | I21: 0.8474576271 | J21: 5084.745763 | L21: 1 | M21: 0 | N21: 0 | O21: 0 | P21: 0 | Q21: 0 | R21: 0 | S21: 0 | V21: 1 | W21: 0 | X21: 0 | Y21: 0 | Z21: 0 | AA21: 0 | AB21: 0 | AC21: 0 | AF21: 6000 | AG21: 0 | AH21: 0 | AI21: 0 | AJ21: 0 | AK21: 0 | AL21: 0 | AM21: 0 | AN21: 0 | AO21: 5084.745763 | AP21: 0 | AQ21: 0 | AR21: 0 | AS21: 0 | AT21: 0 | AU21: 0 | AV21: 0 | AW21: 0
C22: Tarea 1.1.3.2 | D22: … | E22: Taller | F22: 3 | G22: =+G8 -> 4000 | H22: 12000 | I22: 0.8474576271 | J22: 10169.49153 | L22: 1 | M22: 0 | N22: 0 | O22: 0 | P22: 0 | Q22: 0 | R22: 0 | S22: 0 | V22: 1 | W22: 0 | X22: 0 | Y22: 0 | Z22: 0 | AA22: 0 | AB22: 0 | AC22: 0 | AF22: 12000 | AG22: 0 | AH22: 0 | AI22: 0 | AJ22: 0 | AK22: 0 | AL22: 0 | AM22: 0 | AN22: 0 | AO22: 10169.49153 | AP22: 0 | AQ22: 0 | AR22: 0 | AS22: 0 | AT22: 0 | AU22: 0 | AV22: 0 | AW22: 0
C23: Tarea 1.1.3.3 | D23: … | E23: día/persona | F23: =20*F22 -> 60 | G23: 320 | H23: 19200 | I23: 0.8474576271 | J23: 16271.18644 | L23: 1 | M23: 0 | N23: 0 | O23: 0 | P23: 0 | Q23: 0 | R23: 0 | S23: 0 | V23: 1 | W23: 0 | X23: 0 | Y23: 0 | Z23: 0 | AA23: 0 | AB23: 0 | AC23: 0 | AF23: 19200 | AG23: 0 | AH23: 0 | AI23: 0 | AJ23: 0 | AK23: 0 | AL23: 0 | AM23: 0 | AN23: 0 | AO23: 16271.18644 | AP23: 0 | AQ23: 0 | AR23: 0 | AS23: 0 | AT23: 0 | AU23: 0 | AV23: 0 | AW23: 0
B24: Act. 1.1.4 | C24: Elaboración del Plan de Implementación … | AN24: 0 | AW24: 0
C25: Tarea 1.1.4.1 | D25: Talleres de formulación … | E25: Taller | F25: 5 | G25: =+G22 -> 4000 | H25: 20000 | I25: =1/(1.18) -> 0.8474576271 | J25: 16949.15254 | L25: 0.2 | M25: 0.8 | N25: 0 | O25: 0 | P25: 0 | Q25: 0 | R25: 0 | S25: 0 | V25: =+L25 -> 0.2 | W25: 0.8 | X25: 0 | Y25: 0 | Z25: 0 | AA25: 0 | AB25: 0 | AC25: 0 | AF25: =+L25*$H25 -> 4000 | AG25: 16000 | AH25: 0 | AI25: 0 | AJ25: 0 | AK25: 0 | AL25: 0 | AM25: 0 | AN25: 0 | AO25: =+L25*$J25 -> 3389.830508 | AP25: 13559.32203 | AQ25: 0 | AR25: 0 | AS25: 0 | AT25: 0 | AU25: 0 | AV25: 0 | AW25: 0
C26: Tarea 1.1.4.2 | D26: Taller de presentación y validación … | E26: Taller | F26: 2 | G26: =+G25 -> 4000 | H26: 8000 | I26: 0.8474576271 | J26: 6779.661017 | L26: 0 | M26: 1 | N26: 0 | O26: 0 | P26: 0 | Q26: 0 | R26: 0 | S26: 0 | V26: 0 | W26: 1 | X26: 0 | Y26: 0 | Z26: 0 | AA26: 0 | AB26: 0 | AC26: 0 | AF26: 0 | AG26: 8000 | AH26: 0 | AI26: 0 | AJ26: 0 | AK26: 0 | AL26: 0 | AM26: 0 | AN26: 0 | AO26: 0 | AP26: 6779.661017 | AQ26: 0 | AR26: 0 | AS26: 0 | AT26: 0 | AU26: 0 | AV26: 0 | AW26: 0
C27: Tarea 1.1.4.3 | D27: … | E27: día/persona | F27: =20*(F26+F25) -> 140 | G27: 320 | H27: 44800 | I27: 0.8474576271 | J27: 37966.10169 | L27: 0.2 | M27: 0.8 | N27: 0 | O27: 0 | P27: 0 | Q27: 0 | R27: 0 | S27: 0 | V27: 0.2 | W27: 0.8 | X27: 0 | Y27: 0 | Z27: 0 | AA27: 0 | AB27: 0 | AC27: 0 | AF27: 8960 | AG27: 35840 | AH27: 0 | AI27: 0 | AJ27: 0 | AK27: 0 | AL27: 0 | AM27: 0 | AN27: =+H27-SUM(AF27:AM27) -> 0 | AO27: 7593.220339 | AP27: 30372.88136 | AQ27: 0 | AR27: 0 | AS27: 0 | AT27: 0 | AU27: 0 | AV27: 0 | AW27: 0
B28: Acción 1.2 | C28: … | H28: =+SUM(H29:H34) -> 136480 | J28: =+SUM(J29:J34) -> 115661.0169 | AF28: =+SUM(AF29:AF34) -> 0 | AG28: 27296 | AH28: 40944 | AI28: 40944 | AJ28: 27296 | AK28: 0 | AL28: 0 | AM28: 0 | AN28: 0 | AO28: =+SUM(AO29:AO34) -> 0 | AP28: 23132.20339 | AQ28: 34698.30508 | AR28: 34698.30508 | AS28: 23132.20339 | AT28: 0 | AU28: 0 | AV28: 0 | AW28: 0
B29: Act. 1.2.1 | C29: Materiales de fortalecimiento de capacidades | E29: Mapa | F29: 12 | G29: 2000 | H29: =+G29*F29 -> 24000 | I29: =1/(1.18) -> 0.8474576271 | J29: 20338.98305 | L29: 0 | M29: 0.2 | N29: 0.3 | O29: 0.3 | P29: 0.2 | Q29: 0 | R29: 0 | S29: 0 | V29: =+L29 -> 0 | W29: 0.2 | X29: 0.3 | Y29: 0.3 | Z29: 0.2 | AA29: 0 | AB29: 0 | AC29: 0 | AF29: =+L29*$H29 -> 0 | AG29: 4800 | AH29: 7200 | AI29: 7200 | AJ29: 4800 | AK29: 0 | AL29: 0 | AM29: 0 | AN29: 0 | AO29: =+L29*$J29 -> 0 | AP29: 4067.79661 | AQ29: 6101.694915 | AR29: 6101.694915 | AS29: 4067.79661 | AT29: 0 | AU29: 0 | AV29: 0 | AW29: 0
B30: Act. 1.2.2 | C30: Herramientas participativas | E30: Global | F30: 1 | G30: 10000 | H30: 10000 | I30: 0.8474576271 | J30: 8474.576271 | L30: 0 | M30: 0.2 | N30: 0.3 | O30: 0.3 | P30: 0.2 | Q30: 0 | R30: 0 | S30: 0 | V30: 0 | W30: 0.2 | X30: 0.3 | Y30: 0.3 | Z30: 0.2 | AA30: 0 | AB30: 0 | AC30: 0 | AF30: 0 | AG30: 2000 | AH30: 3000 | AI30: 3000 | AJ30: 2000 | AK30: 0 | AL30: 0 | AM30: 0 | AN30: 0 | AO30: 0 | AP30: 1694.915254 | AQ30: 2542.372881 | AR30: 2542.372881 | AS30: 1694.915254 | AT30: 0 | AU30: 0 | AV30: 0 | AW30: 0
B31: Act. 1.2.3 | C31: Cursos especializados para … | AN31: 0 | AW31: 0
C32: Tarea 1.2.1.1 | D32: Talleres de capacitación | E32: Taller | F32: 12 | G32: =+G8 -> 4000 | H32: =+G32*F32 -> 48000 | I32: =1/(1.18) -> 0.8474576271 | J32: 40677.9661 | L32: 0 | M32: 0.2 | N32: 0.3 | O32: 0.3 | P32: 0.2 | Q32: 0 | R32: 0 | S32: 0 | V32: =+L32 -> 0 | W32: 0.2 | X32: 0.3 | Y32: 0.3 | Z32: 0.2 | AA32: 0 | AB32: 0 | AC32: 0 | AF32: =+L32*$H32 -> 0 | AG32: 9600 | AH32: 14400 | AI32: 14400 | AJ32: 9600 | AK32: 0 | AL32: 0 | AM32: 0 | AN32: 0 | AO32: =+L32*$J32 -> 0 | AP32: 8135.59322 | AQ32: 12203.38983 | AR32: 12203.38983 | AS32: 8135.59322 | AT32: 0 | AU32: 0 | AV32: 0 | AW32: 0
C33: Tarea 1.2.1.2 | D33: Pasajes aéreos (I/V) | E33: Pasaje | F33: =4*F32 -> 48 | G33: =+G87 -> 495 | H33: 23760 | I33: 0.8474576271 | J33: 20135.59322 | L33: 0 | M33: 0.2 | N33: 0.3 | O33: 0.3 | P33: 0.2 | Q33: 0 | R33: 0 | S33: 0 | V33: 0 | W33: 0.2 | X33: 0.3 | Y33: 0.3 | Z33: 0.2 | AA33: 0 | AB33: 0 | AC33: 0 | AF33: 0 | AG33: 4752 | AH33: 7128 | AI33: 7128 | AJ33: 4752 | AK33: 0 | AL33: 0 | AM33: 0 | AN33: 0 | AO33: 0 | AP33: 4027.118644 | AQ33: 6040.677966 | AR33: 6040.677966 | AS33: 4027.118644 | AT33: 0 | AU33: 0 | AV33: 0 | AW33: 0
C34: Tarea 1.2.1.3 | D34: Viáticos | E34: día/persona | F34: =4*2*12 -> 96 | G34: 320 | H34: 30720 | I34: 0.8474576271 | J34: 26033.89831 | L34: 0 | M34: 0.2 | N34: 0.3 | O34: 0.3 | P34: 0.2 | Q34: 0 | R34: 0 | S34: 0 | V34: 0 | W34: 0.2 | X34: 0.3 | Y34: 0.3 | Z34: 0.2 | AA34: 0 | AB34: 0 | AC34: 0 | AF34: 0 | AG34: 6144 | AH34: 9216 | AI34: 9216 | AJ34: 6144 | AK34: 0 | AL34: 0 | AM34: 0 | AN34: 0 | AO34: 0 | AP34: 5206.779661 | AQ34: 7810.169492 | AR34: 7810.169492 | AS34: 5206.779661 | AT34: 0 | AU34: 0 | AV34: 0 | AW34: 0
B35: COMPONENTE 2.Suficiente y adecuado equipamiento para la generación, procesamiento, almacenamiento y distribución de información temática | H35: =+H36+H40 -> 452462 | J35: =+J36+J40 -> 383442.3729 | AF35: =+AF36+AF40 -> 0 | AG35: 278308 | AH35: 0 | AI35: 0 | AJ35: 0 | AK35: 0 | AL35: 0 | AM35: 174154 | AN35: 0 | AO35: =+AO36+AO40 -> 0 | AP35: 235854.2373 | AQ35: 0 | AR35: 0 | AS35: 0 | AT35: 0 | AU35: 0 | AV35: 147588.1356 | AW35: 0
B36: Acción 2.1 | C36: … | H36: =+SUM(H37:H39) -> 278308 | J36: =+SUM(J37:J39) -> 235854.2373 | AF36: =+SUM(AF37:AF39) -> 0 | AG36: 278308 | AH36: 0 | AI36: 0 | AJ36: 0 | AK36: 0 | AL36: 0 | AM36: 0 | AN36: 0 | AO36: =+SUM(AO37:AO39) -> 0 | AP36: 235854.2373 | AQ36: 0 | AR36: 0 | AS36: 0 | AT36: 0 | AU36: 0 | AV36: 0 | AW36: 0
B37: Act. 2.1.1 | C37: Hardware | E37: Global | F37: 1 | G37: 100000 | H37: =+G37*F37 -> 100000 | I37: =1/(1.18) -> 0.8474576271 | J37: =+I37*H37 -> 84745.76271 | L37: 0 | M37: 1 | N37: 0 | O37: 0 | P37: 0 | Q37: 0 | R37: 0 | S37: 0 | V37: =+L37 -> 0 | W37: 1 | X37: 0 | Y37: 0 | Z37: 0 | AA37: 0 | AB37: 0 | AC37: 0 | AF37: =+L37*$H37 -> 0 | AG37: 100000 | AH37: 0 | AI37: 0 | AJ37: 0 | AK37: 0 | AL37: 0 | AM37: 0 | AN37: 0 | AO37: =+L37*$J37 -> 0 | AP37: 84745.76271 | AQ37: 0 | AR37: 0 | AS37: 0 | AT37: 0 | AU37: 0 | AV37: 0 | AW37: 0
B38: Act. 2.1.2 | C38: Software: ESRI-ArcGIS Avanzado (Uso individual) v.10.5 | E38: Licencia | F38: 2 | G38: =74154 -> 74154 | H38: 148308 | I38: 0.8474576271 | J38: 125684.7458 | L38: 0 | M38: 1 | N38: 0 | O38: 0 | P38: 0 | Q38: 0 | R38: 0 | S38: 0 | V38: 0 | W38: 1 | X38: 0 | Y38: 0 | Z38: 0 | AA38: 0 | AB38: 0 | AC38: 0 | AF38: 0 | AG38: 148308 | AH38: 0 | AI38: 0 | AJ38: 0 | AK38: 0 | AL38: 0 | AM38: 0 | AN38: 0 | AO38: 0 | AP38: 125684.7458 | AQ38: 0 | AR38: 0 | AS38: 0 | AT38: 0 | AU38: 0 | AV38: 0 | AW38: 0
B39: Act. 2.1.3 | C39: Equipamiento menor (gps, drones,etc.) | E39: Global | F39: 1 | G39: 30000 | H39: 30000 | I39: 0.8474576271 | J39: 25423.72881 | L39: 0 | M39: 1 | N39: 0 | O39: 0 | P39: 0 | Q39: 0 | R39: 0 | S39: 0 | V39: 0 | W39: 1 | X39: 0 | Y39: 0 | Z39: 0 | AA39: 0 | AB39: 0 | AC39: 0 | AF39: 0 | AG39: 30000 | AH39: 0 | AI39: 0 | AJ39: 0 | AK39: 0 | AL39: 0 | AM39: 0 | AN39: 0 | AO39: 0 | AP39: 25423.72881 | AQ39: 0 | AR39: 0 | AS39: 0 | AT39: 0 | AU39: 0 | AV39: 0 | AW39: 0
B40: Acción 2.2 | C40: … | H40: =+H41+H42 -> 174154 | J40: =+J41+J42 -> 147588.1356 | AF40: =+AF41+AF42 -> 0 | AG40: 0 | AH40: 0 | AI40: 0 | AJ40: 0 | AK40: 0 | AL40: 0 | AM40: 174154 | AN40: 0 | AO40: =+AO41+AO42 -> 0 | AP40: 0 | AQ40: 0 | AR40: 0 | AS40: 0 | AT40: 0 | AU40: 0 | AV40: 147588.1356 | AW40: 0
B41: Act. 2.1.1 | C41: Hardware | E41: Global | F41: 1 | G41: 100000 | H41: 100000 | I41: =1/(1.18) -> 0.8474576271 | J41: =+I41*H41 -> 84745.76271 | L41: 0 | M41: 0 | N41: 0 | O41: 0 | P41: 0 | Q41: 0 | R41: 0 | S41: 1 | V41: =+L41 -> 0 | W41: 0 | X41: 0 | Y41: 0 | Z41: 0 | AA41: 0 | AB41: 0 | AC41: 1 | AF41: =+L41*$H41 -> 0 | AG41: 0 | AH41: 0 | AI41: 0 | AJ41: 0 | AK41: 0 | AL41: 0 | AM41: 100000 | AN41: 0 | AO41: =+L41*$J41 -> 0 | AP41: 0 | AQ41: 0 | AR41: 0 | AS41: 0 | AT41: 0 | AU41: 0 | AV41: 84745.76271 | AW41: 0
B42: Act. 2.1.2 | C42: Software: ESRI-ArcGIS Avanzado (Uso individual) v.10.5 | E42: Licencia | F42: 1 | G42: =+G38 -> 74154 | H42: 74154 | I42: 0.8474576271 | J42: 62842.37288 | L42: 0 | M42: 0 | N42: 0 | O42: 0 | P42: 0 | Q42: 0 | R42: 0 | S42: 1 | V42: 0 | W42: 0 | X42: 0 | Y42: 0 | Z42: 0 | AA42: 0 | AB42: 0 | AC42: 1 | AF42: 0 | AG42: 0 | AH42: 0 | AI42: 0 | AJ42: 0 | AK42: 0 | AL42: 0 | AM42: 74154 | AN42: 0 | AO42: 0 | AP42: 0 | AQ42: 0 | AR42: 0 | AS42: 0 | AT42: 0 | AU42: 0 | AV42: 62842.37288 | AW42: 0
B43: COMPONENTE 3 .Bases de datos y mapas temáticos actualizados, integrados, compatibles y disponibles | H43: =+H44 -> 1898751 | J43: =+J44 -> 1609111.017 | AF43: =+AF44 -> 148511 | AG43: 364450 | AH43: 341666.6667 | AI43: 447061.6667 | AJ43: 522061.6667 | AK43: 75000 | AL43: 0 | AM43: 0 | AN43: 0 | AO43: =+AO44 -> 125856.7797 | AP43: 308855.9322 | AQ43: 289548.0226 | AR43: 378865.8192 | AS43: 442425.1412 | AT43: 63559.32203 | AU43: 0 | AV43: 0 | AW43: 0
B44: Acción 3.1 | C44: … | H44: =+SUM(H45:H52) -> 1898751 | J44: =+SUM(J45:J52) -> 1609111.017 | AF44: =+SUM(AF45:AF52) -> 148511 | AG44: 364450 | AH44: 341666.6667 | AI44: 447061.6667 | AJ44: 522061.6667 | AK44: 75000 | AL44: 0 | AM44: 0 | AN44: 0 | AO44: =+SUM(AO45:AO52) -> 125856.7797 | AP44: 308855.9322 | AQ44: 289548.0226 | AR44: 378865.8192 | AS44: 442425.1412 | AT44: 63559.32203 | AU44: 0 | AV44: 0 | AW44: 0
B45: Act. 3.1.1 | C45: Elaboración del Mapa Base | E45: Mapa | F45: 1 | G45: =+'[2]M1. Mapa Base'!H34 -> 148511 | H45: =+G45*F45 -> 148511 | I45: =1/(1.18) -> 0.8474576271 | J45: =+I45*H45 -> 125856.7797 | L45: 1 | M45: 0 | N45: 0 | O45: 0 | P45: 0 | Q45: 0 | R45: 0 | S45: 0 | V45: =+L45 -> 1 | W45: 0 | X45: 0 | Y45: 0 | Z45: 0 | AA45: 0 | AB45: 0 | AC45: 0 | AF45: =+L45*$H45 -> 148511 | AG45: 0 | AH45: 0 | AI45: 0 | AJ45: 0 | AK45: 0 | AL45: 0 | AM45: 0 | AN45: 0 | AO45: =+L45*$J45 -> 125856.7797 | AP45: 0 | AQ45: 0 | AR45: 0 | AS45: 0 | AT45: 0 | AU45: 0 | AV45: 0 | AW45: 0
B46: Act. 3.1.2 | C46: Elaboración del Mapa de Dinámica Poblacionales | E46: Mapa | F46: 1 | G46: =+'[2]M2. Centros Poblados'!H39 -> 128660 | H46: =+G46*F46 -> 128660 | I46: 0.8474576271 | J46: =+I46*H46 -> 109033.8983 | L46: 0 | M46: 1 | N46: 0 | O46: 0 | P46: 0 | Q46: 0 | R46: 0 | S46: 0 | V46: 0 | W46: 1 | X46: 0 | Y46: 0 | Z46: 0 | AA46: 0 | AB46: 0 | AC46: 0 | AF46: 0 | AG46: 128660 | AH46: 0 | AI46: 0 | AJ46: 0 | AK46: 0 | AL46: 0 | AM46: 0 | AN46: 0 | AO46: 0 | AP46: 109033.8983 | AQ46: 0 | AR46: 0 | AS46: 0 | AT46: 0 | AU46: 0 | AV46: 0 | AW46: 0
B47: Act. 3.1.3 | C47: Elaboración del Mapa Forestal | E47: Mapa | F47: 1 | G47: 200000 | H47: =+G47*F47 -> 200000 | I47: 0.8474576271 | J47: 169491.5254 | L47: 0 | M47: 0 | N47: 0 | O47: 0.5 | P47: 0.5 | Q47: 0 | R47: 0 | S47: 0 | V47: 0 | W47: 0 | X47: 0 | Y47: 0.5 | Z47: 0.5 | AA47: 0 | AB47: 0 | AC47: 0 | AF47: 0 | AG47: 0 | AH47: 0 | AI47: 100000 | AJ47: 100000 | AK47: 0 | AL47: 0 | AM47: 0 | AN47: 0 | AO47: 0 | AP47: 0 | AQ47: 0 | AR47: 84745.76271 | AS47: 84745.76271 | AT47: 0 | AU47: 0 | AV47: 0 | AW47: 0
B48: Act. 3.1.4 | C48: Elaboración del Mapa de Capacidad de Uso Mayor de las Tierras | E48: Mapa | F48: 1 | G48: 800000 | H48: =+G48*F48 -> 800000 | I48: 0.8474576271 | J48: 677966.1017 | L48: 0 | M48: 0 | N48: 0.3333333333 | O48: 0.3333333333 | P48: 0.3333333333 | Q48: 0 | R48: 0 | S48: 0 | V48: 0 | W48: 0 | X48: 0.3333333333 | Y48: 0.3333333333 | Z48: 0.3333333333 | AA48: 0 | AB48: 0 | AC48: 0 | AF48: 0 | AG48: 0 | AH48: 266666.6667 | AI48: 266666.6667 | AJ48: 266666.6667 | AK48: 0 | AL48: 0 | AM48: 0 | AN48: 0 | AO48: 0 | AP48: 0 | AQ48: 225988.7006 | AR48: 225988.7006 | AS48: 225988.7006 | AT48: 0 | AU48: 0 | AV48: 0 | AW48: 0
B49: Act. 3.1.5 | C49: Elaboración del Mapa de Ecosistemas priorizados para la conservación de la biodiversidad | E49: Mapa | F49: 1 | G49: =+'[2]M5. EPC'!H109 -> 160790 | H49: 160790 | I49: 0.8474576271 | J49: 136262.7119 | M49: 1 | N49: 0 | O49: 0 | P49: 0 | Q49: 0 | R49: 0 | S49: 0 | V49: 0 | W49: 1 | X49: 0 | Y49: 0 | Z49: 0 | AA49: 0 | AB49: 0 | AC49: 0 | AF49: 0 | AG49: 160790 | AH49: 0 | AI49: 0 | AJ49: 0 | AK49: 0 | AL49: 0 | AM49: 0 | AN49: 0 | AO49: 0 | AP49: 136262.7119 | AQ49: 0 | AR49: 0 | AS49: 0 | AT49: 0 | AU49: 0 | AV49: 0 | AW49: 0
B50: Act. 3.1.6 | C50: Elaboración del Mapa de Hábitats Críticos | E50: Mapa | F50: 1 | G50: =+'[2]M5. EPC'!H109 -> 160790 | H50: 160790 | I50: 0.8474576271 | J50: 136262.7119 | L50: 0 | M50: 0 | N50: 0 | O50: 0.5 | P50: 0.5 | Q50: 0 | R50: 0 | S50: 0 | V50: 0 | W50: 0 | X50: 0 | Y50: 0.5 | Z50: 0.5 | AA50: 0 | AB50: 0 | AC50: 0 | AF50: 0 | AG50: 0 | AH50: 0 | AI50: 80395 | AJ50: 80395 | AK50: 0 | AL50: 0 | AM50: 0 | AN50: 0 | AO50: 0 | AP50: 0 | AQ50: 0 | AR50: 68131.35593 | AS50: 68131.35593 | AT50: 0 | AU50: 0 | AV50: 0 | AW50: 0
B51: Act. 3.1.7 | C51: Elaboración del Mapa de Fisiografía | E51: Mapa | F51: 1 | G51: 150000 | H51: 150000 | I51: 0.8474576271 | J51: 127118.6441 | M51: 0.5 | N51: 0.5 | O51: 0 | P51: 0 | Q51: 0 | R51: 0 | S51: 0 | V51: 0 | W51: 0.5 | X51: 0.5 | Y51: 0 | Z51: 0 | AA51: 0 | AB51: 0 | AC51: 0 | AF51: 0 | AG51: 75000 | AH51: 75000 | AI51: 0 | AJ51: 0 | AK51: 0 | AL51: 0 | AM51: 0 | AN51: 0 | AO51: 0 | AP51: 63559.32203 | AQ51: 63559.32203 | AR51: 0 | AS51: 0 | AT51: 0 | AU51: 0 | AV51: 0 | AW51: 0
B52: Act. 3.1.8 | C52: Elaboración del Mapa de Uso Actual de la Tierra con enfásis en sistemas agroforestales | E52: Mapa | F52: 1 | G52: 150000 | H52: 150000 | I52: 0.8474576271 | J52: 127118.6441 | L52: 0 | M52: 0 | N52: 0 | P52: 0.5 | Q52: 0.5 | R52: 0 | S52: 0 | V52: 0 | W52: 0 | X52: 0 | Y52: 0 | Z52: 0.5 | AA52: 0.5 | AB52: 0 | AC52: 0 | AF52: 0 | AG52: 0 | AH52: 0 | AI52: 0 | AJ52: 75000 | AK52: 75000 | AL52: 0 | AM52: 0 | AN52: 0 | AO52: 0 | AP52: 0 | AQ52: 0 | AR52: 0 | AS52: 63559.32203 | AT52: 63559.32203 | AU52: 0 | AV52: 0 | AW52: 0
B53: COMPONENTE 4.Difusión y sensibilización sobre el proceso de zonificación forestal | H53: =+H54+H63 -> 179500 | J53: =+J54+J63 -> 154446.25 | AF53: =+AF54+AF63 -> 0 | AG53: 0 | AH53: 0 | AI53: 45500 | AJ53: 33500 | AK53: 50250 | AL53: 50250 | AM53: 0 | AN53: 0 | AO53: =+AO54+AO63 -> 0 | AP53: 0 | AQ53: 0 | AR53: 39025.25 | AS53: 28855.25 | AT53: 43282.875 | AU53: 43282.875 | AV53: 0 | AW53: 0
B54: Acción 4.1 | C54: … | H54: =+SUM(H55:H62) -> 51500 | J54: =+SUM(J55:J62) -> 43646.25 | AF54: =+SUM(AF55:AF62) -> 0 | AG54: 0 | AH54: 0 | AI54: 19900 | AJ54: 7900 | AK54: 11850 | AL54: 11850 | AM54: 0 | AN54: 0 | AO54: =+SUM(AO55:AO62) -> 0 | AP54: 0 | AQ54: 0 | AR54: 16865.25 | AS54: 6695.25 | AT54: 10042.875 | AU54: 10042.875 | AV54: 0 | AW54: 0
B55: Act. 4.1.1 | C55: Elaboración de cartillas informativas, afiches, difusión en radio, televisión y prensa, Portal web | AN55: 0 | AW55: 0
C56: Tarea 4.1.1.1 | D56: Spot Radial | E56: Mes | F56: 6 | G56: 2000 | H56: =+G56*F56 -> 12000 | I56: 0.8475 | J56: 10170 | L56: 0 | M56: 0 | N56: 0 | O56: 0.2 | P56: 0.2 | Q56: 0.3 | R56: 0.3 | S56: 0 | V56: =+L56 -> 0 | W56: 0 | X56: 0 | Y56: 0.2 | Z56: 0.2 | AA56: 0.3 | AB56: 0.3 | AC56: 0 | AF56: =+L56*$H56 -> 0 | AG56: 0 | AH56: 0 | AI56: 2400 | AJ56: 2400 | AK56: 3600 | AL56: 3600 | AM56: 0 | AN56: 0 | AO56: =+L56*$J56 -> 0 | AP56: 0 | AQ56: 0 | AR56: 2034 | AS56: 2034 | AT56: 3051 | AU56: 3051 | AV56: 0 | AW56: 0
C57: Tarea 4.1.1.2 | D57: Spot Televisivo | E57: Mes | F57: 6 | G57: 2250 | H57: 13500 | I57: 0.8475 | J57: 11441.25 | L57: 0 | M57: 0 | N57: 0 | O57: 0.2 | P57: 0.2 | Q57: 0.3 | R57: 0.3 | S57: 0 | V57: 0 | W57: 0 | X57: 0 | Y57: 0.2 | Z57: 0.2 | AA57: 0.3 | AB57: 0.3 | AC57: 0 | AF57: 0 | AG57: 0 | AH57: 0 | AI57: 2700 | AJ57: 2700 | AK57: 4050 | AL57: 4050 | AM57: 0 | AN57: 0 | AO57: 0 | AP57: 0 | AQ57: 0 | AR57: 2288.25 | AS57: 2288.25 | AT57: 3432.375 | AU57: 3432.375 | AV57: 0 | AW57: 0
C58: Tarea 4.1.1.3 | D58: Redes Sociales | E58: Mes | F58: 1 | G58: 2000 | H58: 2000 | I58: 0.8475 | J58: 1695 | L58: 0 | M58: 0 | N58: 0 | O58: 0.2 | P58: 0.2 | Q58: 0.3 | R58: 0.3 | S58: 0 | V58: 0 | W58: 0 | X58: 0 | Y58: 0.2 | Z58: 0.2 | AA58: 0.3 | AB58: 0.3 | AC58: 0 | AF58: 0 | AG58: 0 | AH58: 0 | AI58: 400 | AJ58: 400 | AK58: 600 | AL58: 600 | AM58: 0 | AN58: 0 | AO58: 0 | AP58: 0 | AQ58: 0 | AR58: 339 | AS58: 339 | AT58: 508.5 | AU58: 508.5 | AV58: 0 | AW58: 0
C59: Tarea 4.1.1.4 | D59: Portal Web GORE | E59: Mes | F59: 1 | G59: 2000 | H59: 2000 | I59: 0.8475 | J59: 1695 | L59: 0 | M59: 0 | N59: 0 | O59: 0.2 | P59: 0.2 | Q59: 0.3 | R59: 0.3 | S59: 0 | V59: 0 | W59: 0 | X59: 0 | Y59: 0.2 | Z59: 0.2 | AA59: 0.3 | AB59: 0.3 | AC59: 0 | AF59: 0 | AG59: 0 | AH59: 0 | AI59: 400 | AJ59: 400 | AK59: 600 | AL59: 600 | AM59: 0 | AN59: 0 | AO59: 0 | AP59: 0 | AQ59: 0 | AR59: 339 | AS59: 339 | AT59: 508.5 | AU59: 508.5 | AV59: 0 | AW59: 0
C60: Tarea 4.1.1.5 | D60: Tripticos | E60: Millar | F60: 10 | G60: 600 | H60: 6000 | I60: 0.8475 | J60: 5085 | L60: 0 | M60: 0 | N60: 0 | O60: 1 | P60: 0 | Q60: 0 | R60: 0 | S60: 0 | V60: 0 | W60: 0 | X60: 0 | Y60: 1 | Z60: 0 | AA60: 0 | AB60: 0 | AC60: 0 | AF60: 0 | AG60: 0 | AH60: 0 | AI60: 6000 | AJ60: 0 | AK60: 0 | AL60: 0 | AM60: 0 | AN60: 0 | AO60: 0 | AP60: 0 | AQ60: 0 | AR60: 5085 | AS60: 0 | AT60: 0 | AU60: 0 | AV60: 0 | AW60: 0
C61: Tarea 4.1.1.6 | D61: Afiches | E61: Millar | F61: 10 | G61: 600 | H61: 6000 | I61: 0.8475 | J61: 5085 | L61: 0 | M61: 0 | N61: 0 | O61: 1 | P61: 0 | Q61: 0 | R61: 0 | S61: 0 | V61: 0 | W61: 0 | X61: 0 | Y61: 1 | Z61: 0 | AA61: 0 | AB61: 0 | AC61: 0 | AF61: 0 | AG61: 0 | AH61: 0 | AI61: 6000 | AJ61: 0 | AK61: 0 | AL61: 0 | AM61: 0 | AN61: 0 | AO61: 0 | AP61: 0 | AQ61: 0 | AR61: 5085 | AS61: 0 | AT61: 0 | AU61: 0 | AV61: 0 | AW61: 0
B62: Act. 4.1.2 | C62: Elaboración de materiales varios | E62: Global | F62: 1 | G62: 10000 | H62: =+G62*F62 -> 10000 | I62: 0.8475 | J62: =+I62*H62 -> 8475 | L62: 0 | M62: 0 | N62: 0 | O62: 0.2 | P62: 0.2 | Q62: 0.3 | R62: 0.3 | S62: 0 | V62: 0 | W62: 0 | X62: 0 | Y62: 0.2 | Z62: 0.2 | AA62: 0.3 | AB62: 0.3 | AC62: 0 | AF62: 0 | AG62: 0 | AH62: 0 | AI62: 2000 | AJ62: 2000 | AK62: 3000 | AL62: 3000 | AM62: 0 | AN62: 0 | AO62: 0 | AP62: 0 | AQ62: 0 | AR62: 1695 | AS62: 1695 | AT62: 2542.5 | AU62: 2542.5 | AV62: 0 | AW62: 0
B63: Acción 4.2 | C63: … | H63: =+SUM(H64:H66) -> 128000 | J63: =+SUM(J64:J66) -> 110800 | AF63: =+SUM(AF64:AF66) -> 0 | AG63: 0 | AH63: 0 | AI63: 25600 | AJ63: 25600 | AK63: 38400 | AL63: 38400 | AM63: 0 | AN63: 0 | AO63: =+SUM(AO64:AO66) -> 0 | AP63: 0 | AQ63: 0 | AR63: 22160 | AS63: 22160 | AT63: 33240 | AU63: 33240 | AV63: 0 | AW63: 0
B64: Act. 4.2.1 | C64: Facilitador Intercultural (comunicador) | E64: Mes | F64: 8 | G64: 4000 | H64: =+G64*F64 -> 32000 | I64: 0.92 | J64: =+I64*H64 -> 29440 | L64: 0 | M64: 0 | N64: 0 | O64: 0.2 | P64: 0.2 | Q64: 0.3 | R64: 0.3 | S64: 0 | V64: =+L64 -> 0 | W64: 0 | X64: 0 | Y64: 0.2 | Z64: 0.2 | AA64: 0.3 | AB64: 0.3 | AC64: 0 | AF64: =+L64*$H64 -> 0 | AG64: 0 | AH64: 0 | AI64: 6400 | AJ64: 6400 | AK64: 9600 | AL64: 9600 | AM64: 0 | AN64: 0 | AO64: =+L64*$J64 -> 0 | AP64: 0 | AQ64: 0 | AR64: 5888 | AS64: 5888 | AT64: 8832 | AU64: 8832 | AV64: 0 | AW64: 0
B65: Act. 4.2.2 | C65: Presentación pública del Proceso de ZF | E65: Taller | F65: 12 | G65: =+G8 -> 4000 | H65: =+G65*F65 -> 48000 | I65: 0.8475 | J65: =+I65*H65 -> 40680 | L65: 0 | M65: 0 | N65: 0 | O65: 0.2 | P65: 0.2 | Q65: 0.3 | R65: 0.3 | S65: 0 | V65: 0 | W65: 0 | X65: 0 | Y65: 0.2 | Z65: 0.2 | AA65: 0.3 | AB65: 0.3 | AC65: 0 | AF65: 0 | AG65: 0 | AH65: 0 | AI65: 9600 | AJ65: 9600 | AK65: 14400 | AL65: 14400 | AM65: 0 | AN65: 0 | AO65: 0 | AP65: 0 | AQ65: 0 | AR65: 8136 | AS65: 8136 | AT65: 12204 | AU65: 12204 | AV65: 0 | AW65: 0
B66: Act. 4.2.3 | C66: Talleres de difusión y sensibilización en cada provincia | E66: Taller | F66: 12 | G66: =+G65 -> 4000 | H66: =+G66*F66 -> 48000 | I66: 0.8475 | J66: =+I66*H66 -> 40680 | L66: 0 | M66: 0 | N66: 0 | O66: 0.2 | P66: 0.2 | Q66: 0.3 | R66: 0.3 | S66: 0 | V66: 0 | W66: 0 | X66: 0 | Y66: 0.2 | Z66: 0.2 | AA66: 0.3 | AB66: 0.3 | AC66: 0 | AF66: 0 | AG66: 0 | AH66: 0 | AI66: 9600 | AJ66: 9600 | AK66: 14400 | AL66: 14400 | AM66: 0 | AN66: 0 | AO66: 0 | AP66: 0 | AQ66: 0 | AR66: 8136 | AS66: 8136 | AT66: 12204 | AU66: 12204 | AV66: 0 | AW66: 0
B67: COMPONENTE 5.Adecuados mecanismos y espacios de participación en el proceso de ZF | H67: =+H68+H72 -> 259600 | J67: =+J68+J72 -> 220011 | AF67: =+AF68+AF72 -> 0 | AG67: 0 | AH67: 129800 | AI67: 0 | AJ67: 0 | AK67: 51920 | AL67: 51920 | AM67: 25960 | AN67: 0 | AO67: =+AO68+AO72 -> 0 | AP67: 0 | AQ67: 110005.5 | AR67: 0 | AS67: 0 | AT67: 44002.2 | AU67: 44002.2 | AV67: 22001.1 | AW67: 0
B68: Acción 5.1 | C68: … | H68: =+SUM(H69:H71) -> 129800 | J68: =+SUM(J69:J71) -> 110005.5 | AF68: =+SUM(AF69:AF71) -> 0 | AG68: 0 | AH68: 0 | AI68: 0 | AJ68: 0 | AK68: 51920 | AL68: 51920 | AM68: 25960 | AN68: 0 | AO68: =+SUM(AO69:AO71) -> 0 | AP68: 0 | AQ68: 0 | AR68: 0 | AS68: 0 | AT68: 44002.2 | AU68: 44002.2 | AV68: 22001.1 | AW68: 0
B69: Act. 5.1.1 | C69: Materiales | E69: Global | F69: 1 | G69: 5000 | H69: =+G69*F69 -> 5000 | I69: 0.8475 | J69: =+I69*H69 -> 4237.5 | L69: 0 | M69: 0 | N69: 0 | O69: 0 | P69: 0 | Q69: 0.4 | R69: 0.4 | S69: 0.2 | V69: =+L69 -> 0 | W69: 0 | X69: 0 | Y69: 0 | Z69: 0 | AA69: 0.4 | AB69: 0.4 | AC69: 0.2 | AF69: =+L69*$H69 -> 0 | AG69: 0 | AH69: 0 | AI69: 0 | AJ69: 0 | AK69: 2000 | AL69: 2000 | AM69: 1000 | AN69: 0 | AO69: =+L69*$J69 -> 0 | AP69: 0 | AQ69: 0 | AR69: 0 | AS69: 0 | AT69: 1695 | AU69: 1695 | AV69: 847.5 | AW69: 0
B70: Act. 5.1.2 | C70: Talleres | E70: Taller | F70: 12 | G70: =+G8 -> 4000 | H70: =+G70*F70 -> 48000 | I70: 0.8475 | J70: 40680 | L70: 0 | M70: 0 | N70: 0 | O70: 0 | P70: 0 | Q70: 0.4 | R70: 0.4 | S70: 0.2 | V70: 0 | W70: 0 | X70: 0 | Y70: 0 | Z70: 0 | AA70: 0.4 | AB70: 0.4 | AC70: 0.2 | AF70: 0 | AG70: 0 | AH70: 0 | AI70: 0 | AJ70: 0 | AK70: 19200 | AL70: 19200 | AM70: 9600 | AN70: =+H70-SUM(AF70:AM70) -> 0 | AO70: 0 | AP70: 0 | AQ70: 0 | AR70: 0 | AS70: 0 | AT70: 16272 | AU70: 16272 | AV70: 8136 | AW70: =+J70-SUM(AO70:AV70) -> 0
B71: Act. 5.1.3 | C71: Viáticos | E71: día/persona | F71: =20*F70 -> 240 | G71: =+G23 -> 320 | H71: 76800 | I71: 0.8475 | J71: 65088 | L71: 0 | M71: 0 | N71: 0 | O71: 0 | P71: 0 | Q71: 0.4 | R71: 0.4 | S71: 0.2 | V71: 0 | W71: 0 | X71: 0 | Y71: 0 | Z71: 0 | AA71: 0.4 | AB71: 0.4 | AC71: 0.2 | AF71: 0 | AG71: 0 | AH71: 0 | AI71: 0 | AJ71: 0 | AK71: 30720 | AL71: 30720 | AM71: 15360 | AN71: 0 | AO71: 0 | AP71: 0 | AQ71: 0 | AR71: 0 | AS71: 0 | AT71: 26035.2 | AU71: 26035.2 | AV71: 13017.6 | AW71: 0
B72: Acción 5.2 | C72: … | H72: =+SUM(H73:H75) -> 129800 | J72: =+SUM(J73:J75) -> 110005.5 | AF72: =+SUM(AF73:AF75) -> 0 | AG72: 0 | AH72: 129800 | AI72: 0 | AJ72: 0 | AK72: 0 | AL72: 0 | AM72: 0 | AN72: 0 | AO72: =+SUM(AO73:AO75) -> 0 | AP72: 0 | AQ72: 110005.5 | AR72: 0 | AS72: 0 | AT72: 0 | AU72: 0 | AV72: 0 | AW72: 0
B73: Act. 5.1.1 | C73: Materiales | E73: Global | F73: 1 | G73: 5000 | H73: =+G73*F73 -> 5000 | I73: 0.8475 | J73: =+I73*H73 -> 4237.5 | L73: 0 | M73: 0 | N73: 1 | O73: 0 | P73: 0 | Q73: 0 | R73: 0 | S73: 0 | V73: =+L73 -> 0 | W73: 0 | X73: 1 | Y73: 0 | Z73: 0 | AA73: 0 | AB73: 0 | AC73: 0 | AF73: =+L73*$H73 -> 0 | AG73: 0 | AH73: 5000 | AI73: 0 | AJ73: 0 | AK73: 0 | AL73: 0 | AM73: 0 | AN73: 0 | AO73: =+L73*$J73 -> 0 | AP73: 0 | AQ73: 4237.5 | AR73: 0 | AS73: 0 | AT73: 0 | AU73: 0 | AV73: 0 | AW73: 0
B74: Act. 5.1.2 | C74: Talleres | E74: Taller | F74: 12 | G74: =+G70 -> 4000 | H74: =+G74*F74 -> 48000 | I74: 0.8475 | J74: 40680 | L74: 0 | M74: 0 | N74: 1 | O74: 0 | P74: 0 | Q74: 0 | R74: 0 | S74: 0 | V74: 0 | W74: 0 | X74: 1 | Y74: 0 | Z74: 0 | AA74: 0 | AB74: 0 | AC74: 0 | AF74: 0 | AG74: 0 | AH74: 48000 | AI74: 0 | AJ74: 0 | AK74: 0 | AL74: 0 | AM74: 0 | AN74: 0 | AO74: 0 | AP74: 0 | AQ74: 40680 | AR74: 0 | AS74: 0 | AT74: 0 | AU74: 0 | AV74: 0 | AW74: 0
B75: Act. 5.1.3 | C75: Viáticos | E75: día/persona | F75: =20*F74 -> 240 | G75: =+G71 -> 320 | H75: 76800 | I75: 0.8475 | J75: 65088 | L75: 0 | M75: 0 | N75: 1 | O75: 0 | P75: 0 | Q75: 0 | R75: 0 | S75: 0 | V75: 0 | W75: 0 | X75: 1 | Y75: 0 | Z75: 0 | AA75: 0 | AB75: 0 | AC75: 0 | AF75: 0 | AG75: 0 | AH75: 76800 | AI75: 0 | AJ75: 0 | AK75: 0 | AL75: 0 | AM75: 0 | AN75: 0 | AO75: 0 | AP75: 0 | AQ75: 65088 | AR75: 0 | AS75: 0 | AT75: 0 | AU75: 0 | AV75: 0 | AW75: 0
B77: GESTIÓN DEL PROYECTO | H77: =+SUM(H78:H90) -> 297900 | J77: =+SUM(J78:J90) -> 270738.3051 | AF77: =+SUM(AF78:AF90) -> 31500 | AG77: =+SUM(AG78:AG90) -> 37985.71429 | AH77: 37985.71429 | AI77: 37985.71429 | AJ77: 37985.71429 | AK77: 37985.71429 | AL77: 37985.71429 | AM77: 38485.71429 | AN77: 0 | AO77: =+SUM(AO78:AO90) -> 28980 | AP77: 34476.36804 | AQ77: 34476.36804 | AR77: 34476.36804 | AS77: 34476.36804 | AT77: 34476.36804 | AU77: 34476.36804 | AV77: 34900.09685 | AW77: 0
B78: Act.1 | C78: Expediente Técnico | AN78: 0 | AW78: 0
B79: Act.2 | C79: Supervisión | AN79: 0 | AW79: 0
B80: Act.3 | C80: Liquidación del Proyecto | AN80: 0 | AW80: 0
B81: Act.4 | C81: Personal | AN81: 0 | AW81: 0
C82: Act. 4.1 | D82: Jefe de Proyecto | E82: mes | F82: =12*2 -> 24 | G82: 7000 | H82: =+G82*F82 -> 168000 | I82: 0.92 | J82: =+I82*H82 -> 154560 | L82: 0.125 | M82: 0.125 | N82: 0.125 | O82: 0.125 | P82: 0.125 | Q82: 0.125 | R82: 0.125 | S82: 0.125 | V82: =+L82 -> 0.125 | W82: 0.125 | X82: 0.125 | Y82: 0.125 | Z82: 0.125 | AA82: 0.125 | AB82: 0.125 | AC82: 0.125 | AF82: =+L82*$H82 -> 21000 | AG82: 21000 | AH82: 21000 | AI82: 21000 | AJ82: 21000 | AK82: 21000 | AL82: 21000 | AM82: 21000 | AN82: 0 | AO82: =+L82*$J82 -> 19320 | AP82: 19320 | AQ82: 19320 | AR82: 19320 | AS82: 19320 | AT82: 19320 | AU82: 19320 | AV82: 19320 | AW82: 0
C83: Act. 4.2 | D83: Administrador | E83: mes | F83: =12*2 -> 24 | G83: 3500 | H83: =+G83*F83 -> 84000 | I83: 0.92 | J83: =+I83*H83 -> 77280 | L83: 0.125 | M83: 0.125 | N83: 0.125 | O83: 0.125 | P83: 0.125 | Q83: 0.125 | R83: 0.125 | S83: 0.125 | V83: 0.125 | W83: 0.125 | X83: 0.125 | Y83: 0.125 | Z83: 0.125 | AA83: 0.125 | AB83: 0.125 | AC83: 0.125 | AF83: 10500 | AG83: 10500 | AH83: 10500 | AI83: 10500 | AJ83: 10500 | AK83: 10500 | AL83: 10500 | AM83: 10500 | AN83: 0 | AO83: 9660 | AP83: 9660 | AQ83: 9660 | AR83: 9660 | AS83: 9660 | AT83: 9660 | AU83: 9660 | AV83: 9660 | AW83: 0
C84: Act. 4.3 | D84: Asistente | AN84: 0 | AW84: 0
B85: Act.5 | C85: Gastos Administrativos | AN85: 0 | AW85: 0
C86: Act. 5.1 | D86: Courier (Remisión de expediente a SERFOR/MINAM) | E86: Global | F86: 1 | G86: 500 | H86: =+G86*F86 -> 500 | I86: =1/(1.18) -> 0.8474576271 | J86: =+I86*H86 -> 423.7288136 | L86: 0 | M86: 0 | N86: 0 | O86: 0 | P86: 0 | Q86: 0 | R86: 0 | S86: 1 | V86: =+L86 -> 0 | W86: 0 | X86: 0 | Y86: 0 | Z86: 0 | AA86: 0 | AB86: 0 | AC86: 1 | AF86: =+L86*$H86 -> 0 | AG86: 0 | AH86: 0 | AI86: 0 | AJ86: 0 | AK86: 0 | AL86: 0 | AM86: 500 | AN86: 0 | AO86: =+L86*$J86 -> 0 | AP86: 0 | AQ86: 0 | AR86: 0 | AS86: 0 | AT86: 0 | AU86: 0 | AV86: 423.7288136 | AW86: 0
C87: Act. 5.2 | D87: Pasajes aéreos (I/V) / Asistencia Técnica Serfor | E87: Pasaje | F87: 40 | G87: =150*3.3 -> 495 | H87: =+G87*F87 -> 19800 | I87: 0.8474576271 | J87: =+I87*H87 -> 16779.66102 | L87: 0 | M87: 0.1428571429 | N87: =+M87 -> 0.1428571429 | O87: 0.1428571429 | P87: 0.1428571429 | Q87: 0.1428571429 | R87: 0.1428571429 | S87: 0.1428571429 | V87: 0 | W87: 0.1428571429 | X87: 0.1428571429 | Y87: 0.1428571429 | Z87: 0.1428571429 | AA87: 0.1428571429 | AB87: 0.1428571429 | AC87: 0.1428571429 | AF87: 0 | AG87: 2828.571429 | AH87: 2828.571429 | AI87: 2828.571429 | AJ87: 2828.571429 | AK87: 2828.571429 | AL87: 2828.571429 | AM87: 2828.571429 | AN87: 0 | AO87: 0 | AP87: 2397.094431 | AQ87: 2397.094431 | AR87: 2397.094431 | AS87: 2397.094431 | AT87: 2397.094431 | AU87: 2397.094431 | AV87: 2397.094431 | AW87: 0
C88: Act. 5.3 | D88: Viáticos / Asistencia Técnica Serfor | E88: día/persona | F88: 80 | G88: 320 | H88: =+G88*F88 -> 25600 | I88: 0.8474576271 | J88: =+I88*H88 -> 21694.91525 | L88: 0 | M88: 0.1428571429 | N88: 0.1428571429 | O88: 0.1428571429 | P88: 0.1428571429 | Q88: 0.1428571429 | R88: 0.1428571429 | S88: 0.1428571429 | V88: 0 | W88: 0.1428571429 | X88: 0.1428571429 | Y88: 0.1428571429 | Z88: 0.1428571429 | AA88: 0.1428571429 | AB88: 0.1428571429 | AC88: 0.1428571429 | AF88: 0 | AG88: 3657.142857 | AH88: 3657.142857 | AI88: 3657.142857 | AJ88: 3657.142857 | AK88: 3657.142857 | AL88: 3657.142857 | AM88: 3657.142857 | AN88: 0 | AO88: 0 | AP88: 3099.273608 | AQ88: 3099.273608 | AR88: 3099.273608 | AS88: 3099.273608 | AT88: 3099.273608 | AU88: 3099.273608 | AV88: 3099.273608 | AW88: 0
C89: Act. 5.4 | D89: Otros gastos | AN89: 0 | AW89: 0
AN90: 0 | AW90: 0
B91: Costo Total de Inversión | H91: =+H67+H53+H43+H35+H5+H77 -> 3753623.96 | J91: =+J67+J53+J43+J35+J5+J77 -> 3229512.809 | AF91: =+AF67+AF53+AF43+AF35+AF5+AF77 -> 313101.96 | AG91: 815879.7143 | AH91: 598396.381 | AI91: 619491.381 | AJ91: 668843.381 | AK91: 263155.7143 | AL91: 188155.7143 | AM91: 286599.7143 | AN91: =+H91-SUM(AF91:AM91) -> 0 | AO91: =+AO67+AO53+AO43+AO35+AO5+AO77 -> 271107.7627 | AP91: 697190.6053 | AQ91: 512888.1957 | AR91: 531225.7423 | AS91: 573048.9627 | AT91: 229480.7651 | AU91: 165921.443 | AV91: 248649.3324 | AW91: 0

Sheet Hoja1 (hidden)
C2: Sí | D2: 1 | E2: Celda vinculada
C3: No | D3: 0
C5: Sí | D5: 1 | E5: Celda vinculada
C6: No | D6: 0
C8: Sí | D8: 1 | E8: Celda vinculada
C9: No | D9: 0
G10: 0
C11: Sí | D11: 1 | E11: Celda vinculada | G11: 1
C12: No | D12: 0 | E12: 3 | G12: 2
G13: 3
C14: Sí | D14: 1 | E14: Celda vinculada | G14: 4
C15: No | D15: 0 | E15: 3 | G15: 5
G16: 6
C17: Sí | D17: 1 | E17: Celda vinculada | G17: 7
C18: No | D18: 0 | G18: 8
G19: 9
C20: Sí | D20: 1 | E20: Celda vinculada | G20: 10
C21: No | D21: 0
C23: Sí | D23: 1 | E23: Celda vinculada
C24: No | D24: 0
C26: Sí | D26: 1 | E26: Celda vinculada
C27: No | D27: 0
C29: Sí | D29: 1 | E29: Celda vinculada
C30: No | D30: 0

Sheet Hoja2 (hidden)
B3: Cooperante
B4: Beneficiario
B5: Oponente
B6: Perjudicado
O11: 8 | Q11: 1 | S11: 1
O12: 1 | Q12: 1 | S12: 1
O13: 1 | Q13: 1 | S13: 1
O14: 1 | Q14: 1 | S14: 1
O15: 1 | Q15: 1 | S15: 1
O16: 1 | Q16: 1 | S16: 1
O17: 1 | Q17: 1 | S17: 1
O18: 1 | Q18: 1 | S18: 1
O19: 1 | Q19: 1 | S19: 1
O20: 1 | Q20: 1 | S20: 1
O21: 1 | Q21: 1 | S21: 1
O22: 1 | Q22: 1 | S22: 1
O23: 1 | Q23: 1 | S23: 1
O24: 1 | Q24: 1 | S24: 1
B31: Especificaciones técnicas
B32: Garantía del servicio de mantenimiento a los equipos | J32: Sí
B33: Grado de dependencia del proveedor | J33: No
B34: Entrenamiento que brindará el proveedor
B35: Obsolescencia tecnológica
B36: Seguridad industrial y riesgos ambientales asociados
B37: Condiciones climáticas y físicas
B38: Disponibilidad de recursos
